Workbook

Sheet Instructions
G1: Aggregate: sand and gravel air emissions calculator
G2: p-sbap5-30 • 4/22/19
B5: Instructions
B6: 1) Begin with the first blue tab across the bottom to enter information for your business.
B7: 2) The green tab totals all potential and actual emissions from the information entered on the blue tabs.
B8: 3) The yellow 'Permits & Requirements' tab will help you decide which permit to apply for.
B9: 4) Later, you can use the blue tabs to calculate your actual emissions for the air emission inventory, a report due annually if you have an air permit.
B12: Color key
B13: Blue | C13: Enter information for your facility in the blue boxes.
B14: White | C14: Do not change the values/formulas in white boxes. White boxes contain intermediate calculations for determining emissions.
B15: Green | C15: Your emission totals are in green boxes. These are automatically calculated based on information entered in blue boxes.
B16: Yellow | C16: Permit and insignificant activity thresholds.
B17: Orange | C17: Orange boxes are filled with standard values. You may change them if you have test results that provide data specific to your site.
B18: Blue Text | C18: Important tips
B21: Assistance
B22: This calculator was created by the Minnesota Pollution Control Agency's (MPCA) Business Assistance program.
B23: We provide free, confidential, environmental assistance to small businesses. For more information:
B24: Call: | C24: 651/282-6143 | E24: Email: | F24: smallbizhelp.pca@state.mn.us
C25: 800/657-3938
B27: Online at the MPCA's website: | G27: More information found on the MPCA's Aggregate - sand and gravel webpage:
B28: https://www.pca.state.mn.us/smallbizhelp | G28: https://www.pca.state.mn.us/regulations/aggregate-sand-and-gravel

Sheet Federal standards
B1: =Instructions!G2 -> p-sbap5-30 • 4/22/19
B2: U.S. Environmental Protection Agency (EPA) standards
B4: New source performance standards (NSPS) require new emission sources to be less polluting than older sources. | I4: National emission standards for hazardous air pollutants (NESHAP) prevent or reduce emissions that have health impacts.
B7: ▪ | C7: Each NSPS or NESHAP applies to specific equipment, processes, or industries.
B8: ▪ | C8: Multiple federal standards may apply to your business. It is possible that if you make a change at your business, a federal standard that did not previously apply now will, or the one you are already following may have additional requirements. A NESHAP can impose requirements on existing equipment without any changes at the facility.
B11: ▪ | C11: Federal standards can determine whether you need a permit and what requirements you must follow. You may have to follow federal standard requirements in addition to state permit requirements. Below are some of the common federal standards that affect aggregate mining and processing.
B15: New source performance standards (NSPS)
B16: Does the NSPS for nonmetallic mineral processors apply to you? | N16: Choose Y/N
B17: This standard applies to each crusher, grinding mill, screening operation, bucket elevator, belt conveyor, bagging operation, storage bin, enclosed truck or railcar loading station if: | N17: =IF($N$16="Yes","Because this NSPS applies to your operation, you need an air permit.",IF($N$16="No","Continue to the next question.",IF($N$16="Choose Y/N"," "," "))) -> 
B19: 1) | C19: your fixed plant is larger than 25 tons/hour or your portable plant is larger than 150 tons/hour, AND
B20: 2) | C20: your plant or equipment was constructed, reconstructed, or modified* after August 31, 1983.
B21: There are 18 nonmetallic minerals, including 'crushed and broken stone' and 'sand and gravel,' whose crusher, grinding mill, screens, bucket elevator, belt conveyor, bagging operation, storage bins, and truck loading stations are addressed by this regulation to reduce particulate matter air emissions. | N21: =IF(N16="Yes","Continue to the next question.",IF(N16="No","",IF(N16="Choose Y/N"," "))) -> 
D25: Resource | E25: EPA Rule information
D26: Regulation | E26: 40 CFR pt. 60, subp. OOO
B29: Does an NSPS for internal combustion engines apply to you? | N29: Choose Y/N
B30: The two NSPSs that apply to engines are: | N30: =IF(N29="Yes","You must follow NSPS requirements. Assess emissions to see if you need a permit.",IF(N29="No","Continue to the next question.",IF(N29="Choose Y/N"," "," "))) -> 
B31: 1) | C31: Standards of Performance for Compression Ignition Engines | I31: Full Text: | J31: 40 CFR 60, subp. IIII
B32: 2) | C32: Standards of Performance for Spark Ignition Engines | J32: 40 CFR 60, subp. JJJJ
B34: · | C34: To help understand if the rule applies, use the Regulation Navigation Tool provided by EPA for NSPS IIII and JJJJ.
C35: https://www3.epa.gov/ttn/atw/ice/quiz.html | N35: =IF(N29="Yes","Continue to the next question.",IF(N29="No","",IF(N29="Choose Y/N"," "))) -> 
B36: There are also engine standards for hazardous air pollutants -- see NESHAP info below.
B39: Does the NSPS for volatile organic liquid (petroleum) storage apply to you? | N39: Choose Y/N
B40: This standard applies if you have a storage tank or container at your site that: | N40: =IF(N39="Yes","You must follow NSPS requirements. Assess emissions to see if you need a permit.",IF(N39="No","Continue to the next question.",IF(N39="Choose Y/N"," "," "))) -> 
B41: 1) | C41: was constructed, reconstructed, or modified* after July 23, 1984,
B42: 2) | C42: holds about 19,800 gallons or more, and
B43: 3) | C43: stores volatile organic liquids (including petroleum products such as fuel).
C45: The full text of NSPS for volatile liquid storage is available at: | I45: 40 CFR pt. 60, subp. Kb | N45: =IF(N39="Yes","Continue to the next question.",IF(N39="No","",IF(N39="Choose Y/N"," "))) -> 
B48: Does the NSPS for calciners and dryers or another NSPS apply to you? | N48: Choose Y/N
B49: The standard for calciners and dryers in mineral industries applies if: | N49: =IF(N48="Yes","Because this NSPS applies to your operation, you need an air permit.",IF(N48="No","Continue to the next question.",IF(N48="Choose Y/N"," "," "))) -> 
B50: 1) | C50: you use a dryer or calciner at your site that was purchased, constructed, reconstructed, or modified* after April 23, 1986.
C52: The full text of NSPS for calciners and dryers is available at: | I52: 40 CFR pt. 60, subp. UUU
N53: =IF(N48="Yes","Continue to the next question.",IF(N48="No","",IF(N48="Choose Y/N"," "))) -> 
B54: Additional performance standards: Even if the standards listed above do not apply to you, there are other NSPS that might, depending on what other equipment or activities you have at the facility.
C57: A list of performance standards is available at: | G57: https://www.pca.state.mn.us/sites/default/files/aq-f1-gi09d.doc
B60: National emission standards for hazardous air pollutants
B61: Does a federal NESHAP apply? | N61: Choose Y/N
B62: A NESHAP that may apply to your crusher engine or generator is for: | N62: =IF(N61="Yes","Follow NESHAP requirements. Assess emissions for permit thresholds.",IF(N61="No","Continue to the next blue tab.",IF(N61="Choose Y/N"," "," "))) -> 
C63: Stationary Reciprocating Internal Combustion Engines | I63: Full Text: | J63: 40 CFR 63, subp. ZZZZ
C64: To help understand if the rule applies, use the Regulation Navigation Tool provided by EPA
C65: https://www3.epa.gov/airtoxics/rice/output/quiz.html
N66: =IF(N61="Yes","Continue to the next blue tab.",IF(N61="No","",IF(N61="Choose Y/N"," "))) -> 
C67: A list of other NESHAPs is found at the end of the following document:
C68: https://www.pca.state.mn.us/sites/default/files/aq-f3-rp07.pdf
B71: *Definition of "construction, modification, or reconstruction"
B72: If your business does an activity which is considered construction, modification, or reconstruction, as defined below or within the standard, an NSPS or NESHAP may apply to your business or create the need for a permit amendment.
B74: ▪ | C74: Construction includes fabricating, erecting, or installing an aggregate plant, engine, or storage tank.
B75: ▪ | C75: Modification is a physical or operational change at an existing facility that increases the amount of an air pollutant or results in the emission of a new air pollutant.
B77: ▪ | C77: Reconstruction is the replacement of components at an existing facility that exceeds 50% of the cost required to build a new facility.
B79: The full definitions of construction and modification are available at: | I79: 40 CFR § 60.2 | K79: and reconstruction at: | N79: 40 CFR § 60.15

Sheet State general permit
B1: =Instructions!G2 -> p-sbap5-30 • 4/22/19
B2: State rules for aggregate processing
B3: An air permit is required if
B4: 1) | C4: one or more federal performance standard applies, excluding those listed in Minn. R. 7007.0300, or | L4: Minn. R. 7007.0300
B5: 2) | C5: your business' overall potential air emissions exceed permit thresholds.
B7: On the federal standards tab, you indicated that the following performance standards apply:
E8: =IF('Federal standards'!$N$16="Yes","NSPS OOO"," ") ->  | G8: =IF('Federal standards'!$N$29="Yes","NSPS IIII or JJJJ"," ") ->  | I8: =IF('Federal standards'!$N$39="Yes","NSPS Kb"," ") ->  | J8: =IF('Federal standards'!$N$48="Yes","NSPS UUU/other NSPS"," ") -> 
B9: =IF(OR('Federal standards'!$N$16="Choose Y/N",OR('Federal standards'!$N$29="Choose Y/N",OR('Federal standards'!$N$39="Choose Y/N",'Federal standards'!$N$48="Choose Y/N"))),"Return to the federal standards tab and answer all Y/N questions."," ") -> Return to the federal standards tab and answer all Y/N questions.
C11: When… | F11: Then…
C12: NSPS UUU or NSPS apply (excludes OOO, IIII, JJJJ, Kb) | F12: A permit is required but, you do not qualify for the general permit. Continue to the next blue tab to calculate your potential emissions.
C15: NSPS OOO applies (NSPS IIII, JJJJ, or Kb may also apply) | F15: A permit is required; Calculate your potential air emissions to see if they exceed permitting thresholds.
F17: ▪ | G17: If your potential emissions do not exceed permitting thresholds, you may qualify for a Registration Permit Option A. Go to the permits & requirements tab.
F19: ▪ | G19: If your potential emissions do exceed permitting thresholds, see If you qualify for the nonmetallic mineral general air permit. Go to the qualification review checklist below.
C21: only NSPS IIII, JJJJ, or Kb apply | F21: A permit may be required; Calculate your potential air emissions to see if they exceed permitting thresholds.
F23: ▪ | G23: If your potential emissions do exceed permitting thresholds, see If you qualify for the nonmetallic mineral general air permit. Go to the qualification review checklist below.
C25: an NSPS does not apply | F25: See if your potential emissions exceed permit thresholds. Continue to the following blue tabs to calculate your potential emissions.
F27: Then, if your potential emissions exceed permitting thresholds, you may qualify for the general permit. Go to the qualification checklist below or to the permits and requirements tab.
B30: Does your business qualify for the MPCA general air permit for nonmetallic mineral processors? | N30: Choose Y/N
B31: ▪ | C31: See if your business qualifies for the general air permit for nonmetallic mineral processors by completing the:
D32: NM-00: Qualifications Review Checklist – Nonmetallic Mineral Processing General Permit (aq-f4-nm00)
B33: ▪ | C33: If the business qualifies for the general permit, your business cannot obtain a registration permit.
B35: Stop here: You have indicated that your business qualifies for the general air permit. You do not need to calculate your potential emissions. Begin the air application process with the submittal cover page (SCP-01) and complete all applicable forms for the nonmetallic mineral general permit. See the application forms on the air permit and forms page – scroll down the webpage to #4.
C38: ▪ | D38: SCP-01: Submittal cover page (aq-f1-scp01) | J38: If your business qualifies for the general permit and an individual permit, you may apply for either type.
C39: ▪ | D39: Air permit forms webpage
C40: ▪ | D40: More information on types of air permits | J40: Minn. R. 7007.1100, subp. 5
B42: Continue to the next blue tab and calculate your potential air emissions to see which type of permit is required.
C43: The permits and requirements tab will help you decide which permit best fits your facility.
C44: ▪ | D44: More information on types of air permits

Sheet Aggregate
B1: =Instructions!G2 -> p-sbap5-30 • 4/22/19
B2: Air emissions for aggregates: sand and gravel
B3: For the aggregate activities, use the following parameters.
B5: Crushing | C5: Aggregate output diameter | F5: Screening | G5: Occurring between crushers… | J5: Keep records
B6: Primary | C6: 3 to 12 inches | F6: Screening | G6: Primary to Secondary & Secondary to Tertiary | J6: Use the Compliance Calendar
B7: Secondary | C7: 2.5 to 10 inches | J7: for Aggregate Facilities
B8: Tertiary | C8: 0.5 to 2.5 centimeters (3/16 to 1 inch) | F8: Fines | G8: Tertiary to Fines & Fines
B9: Fines | C9: maximum of 0.5 centimeters (3/16 inch)
C11: Convey and transfer points: One transfer point is counted for every time the material is handled and moved from a piece of equipment or pile. For example, when the aggregate is dumped from an arriving vehicle into a pile, when aggregate is scooped from the pile and dumped into a hopper, when the aggregate is conveyed from one piece of equipment to another, etc.
B15: Potential emissions - Aggregate: sand and gravel
B16: Enter the maximum amount of aggregate that each unit can process per hour, based on manufacturer specifications.
B17: If you have more than one unit of the same type, enter the total maximum hourly throughput in the blue box.
B18: For example: If you have 2 primary crushers where crusher 1 can process 150 tons per hour and crusher 2 can process 50 tons per hour, enter 200 tons per hour in the maximum throughput blue box.
B21: How many transfer points are there for the material? | F21: 0 | G21: number of transfer points
B23: a | D23: b | E23: c | F23: d | G23: e | H23: f | I23: g | J23: h | K23: i
B24: Potential Activity | D24: Maximum Throughput | E24: Maximum Throughput | F24: PM Emission Factor | G24: PM Emissions | H24: PM10 Emission Factor | I24: PM10 Emissions | J24: PM2.5 Emission Factor | K24: PM2.5 Emissions
D26: (tons/hour) | E26: (tons/year) | F26: (lb/ton) | G26: (tons/year) | H26: (lb/ton) | I26: (ton/year) | J26: (lb/ton) | K26: (ton/year)
E27: b*8760 | G27: c*d/2000 | I27: c*f/2000 | K27: c*h/2000
B28: Crushing | C28: Primary | D28: 0 | E28: =D28*8760 -> 0 | F28: ='Aggregate emission factors'!E10 -> 0.0007 | G28: =$E28*F28/2000 -> 0 | H28: ='Aggregate emission factors'!G10 -> 0.0007 | I28: =$E28*H28/2000 -> 0 | J28: ='Aggregate emission factors'!E36 -> 0.0005 | K28: =$E28*J28/2000 -> 0
C29: Secondary | D29: 0 | E29: =D29*8760 -> 0 | F29: ='Aggregate emission factors'!E12 -> 0.025 | G29: 0 | H29: ='Aggregate emission factors'!G12 -> 0.0087 | I29: 0 | J29: ='Aggregate emission factors'!E37 -> 0.00025 | K29: 0
C30: Tertiary | D30: 0 | E30: 0 | F30: ='Aggregate emission factors'!E14 -> 0.0054 | G30: 0 | H30: ='Aggregate emission factors'!G14 -> 0.0024 | I30: 0 | J30: ='Aggregate emission factors'!E38 -> 0.0005 | K30: 0
C31: Fines | D31: 0 | E31: 0 | F31: ='Aggregate emission factors'!E16 -> 0.039 | G31: 0 | H31: ='Aggregate emission factors'!G16 -> 0.015 | I31: 0 | J31: ='Aggregate emission factors'!E39 -> 0.00035 | K31: 0
B32: Screening | C32: Screening | D32: 0 | E32: 0 | F32: ='Aggregate emission factors'!E18 -> 0.025 | G32: 0 | H32: ='Aggregate emission factors'!G18 -> 0.0087 | I32: 0 | J32: ='Aggregate emission factors'!E40 -> 0.00025 | K32: 0
C33: Fines | D33: 0 | E33: 0 | F33: ='Aggregate emission factors'!E20 -> 0.3 | G33: 0 | H33: ='Aggregate emission factors'!G20 -> 0.072 | I33: 0 | J33: ='Aggregate emission factors'!E41 -> 0.0025 | K33: 0
B34: Convey and Transfer Points | D34: =F21*D28 -> 0 | E34: =D34*F21*8760 -> 0 | F34: ='Aggregate emission factors'!E22 -> 0.003 | G34: 0 | H34: ='Aggregate emission factors'!G22 -> 0.0011 | I34: 0 | J34: ='Aggregate emission factors'!E42 -> 6.5e-05 | K34: 0
B35: Total tons of emissions (excluding combustion from engines) | G35: =SUM(G28:G34) -> 0 | I35: =SUM(I28:I34) -> 0 | K35: =SUM(K28:K34) -> 0
B36: Emission factor source: see 'Aggregate Emission Factors' tab
B39: Actual emissions - Aggregate: sand and gravel
B40: Enter the actual tons of aggregate that went through the following equipment processes:
B41: a | D41: b | E41: c | F41: d | G41: e | H41: f | I41: g | J41: h
B42: Actual Activity | D42: Actual Throughput | E42: PM Emission Factor | F42: PM Emissions | G42: PM10 Emission Factor | H42: PM10 Emissions | I42: PM2.5 Emission Factor1 | J42: PM2.5 Emissions
D44: (tons/year) | E44: (lb/ton) | F44: (tons/year) | G44: (lb/ton) | H44: (ton/year) | I44: (lb/ton) | J44: (ton/year)
F45: b*c/2000 | H45: b*e/2000 | J45: b*g/2000
B46: Crushing | C46: Primary | D46: 0 | E46: =F28 -> 0.0007 | F46: =$D46*E46/2000 -> 0 | G46: =H28 -> 0.0007 | H46: =$D46*G46/2000 -> 0 | I46: =J28 -> 0.0005 | J46: =$D46*I46/2000 -> 0
C47: Secondary | D47: 0 | E47: 0.025 | F47: =$D47*E47/2000 -> 0 | G47: 0.0087 | H47: =$D47*G47/2000 -> 0 | I47: 0.00025 | J47: =$D47*I47/2000 -> 0
C48: Tertiary | D48: 0 | E48: 0.0054 | F48: =$D48*E48/2000 -> 0 | G48: 0.0024 | H48: =$D48*G48/2000 -> 0 | I48: 0.0005 | J48: =$D48*I48/2000 -> 0
C49: Fines | D49: 0 | E49: 0.039 | F49: =$D49*E49/2000 -> 0 | G49: 0.015 | H49: =$D49*G49/2000 -> 0 | I49: 0.00035 | J49: =$D49*I49/2000 -> 0
B50: Screening | C50: Screening | D50: 0 | E50: 0.025 | F50: =$D50*E50/2000 -> 0 | G50: 0.0087 | H50: =$D50*G50/2000 -> 0 | I50: 0.00025 | J50: =$D50*I50/2000 -> 0
C51: Fines | D51: 0 | E51: 0.3 | F51: =$D51*E51/2000 -> 0 | G51: 0.072 | H51: =$D51*G51/2000 -> 0 | I51: 0.0025 | J51: =$D51*I51/2000 -> 0
B52: Convey and Transfer Points | D52: 0 | E52: 0.003 | F52: =$D52*E52/2000 -> 0 | G52: 0.0011 | H52: =$D52*G52/2000 -> 0 | I52: 6.5e-05 | J52: =$D52*I52/2000 -> 0
B53: Total tons of emissions (excluding combustion from engines) | F53: =SUM(F46:F52) -> 0 | H53: =SUM(H46:H52) -> 0 | J53: =SUM(J46:J52) -> 0
B54: Emission factor source: see 'Aggregate Emission Factors' tab

Sheet Crusher engine
B1: =Instructions!G2 -> p-sbap5-30 • 4/22/19
B2: Air emissions from the aggregate crusher internal combustion engine
B3: Reciprocating internal combustion engine (RICE)
B5: Engine and fuel type | E5: Choose one | G5: Facility identifier for engine | I5: Crusher
B6: Engine use | E6: Choose one | F6: If emergency engine is used for peak-shaving or contracted for >15 hr/yr, choose 'Routine.'
B7: =IF(E5='Data validation'!B6," ",IF(OR(E5=rd,E5=rg),"Rated mechanical output",IF(OR(E5=ngl,OR(E5=ngr,OR(E5=tng,E5=ng2l))),"Rated fuel input"," "))) ->  | E7: 0 | F7: =IF(B7=" "," ",IF(B7="Rated mechanical output",'Data validation'!B21,IF(B7="Rated fuel input",'Data validation'!B22))) -> 
B8: Choose one to calculate actual emissions | E8: 0 | F8: =IF(B8='Data validation'!C5," ",IF(B8='Data validation'!C6,'Data validation'!C11,IF(AND(B8='Data validation'!C7,OR(E5=tng,OR(E5=ngl,OR(E5=ngr,OR(E5=ng2l))))),'Data validation'!C12,IF(AND(B8='Data validation'!C7,OR(E5=rd,OR(E5=rg))),'Data validation'!C13," ")))) -> 
B9: =IF(F7=" "," ",IF(F7='Data validation'!B21,'Data validation'!B25,IF(F7='Data validation'!B22,'Data validation'!B26))) ->  | E9: =IF(E5='Data validation'!A6," ",IF(E5=rd,'Engine Emission Factors'!F48,IF(E5=rg,'Engine Emission Factors'!F49,IF(OR(E5=ngl,OR(E5=ngr,OR(E5=tng,E5=ng2l))),'Engine Emission Factors'!G47," ")))) ->  | F9: =IF(B9=" "," ",IF(B9='Data validation'!B25,"(Btu/HP-hr)",IF(B9='Data validation'!B26,"Btu/scf"))) -> 
B10: =IF(E5='Data validation'!B6," ",IF(E5=rd,"Heat value of fuel",IF(E5=rg,"Heat value of fuel"," "))) ->  | D10: Heat value of fuel | E10: =IF(E5=rd,'Engine Emission Factors'!H48,IF(E5=rg,'Engine Emission Factors'!H49," ")) ->  | F10: =IF(E5='Data validation'!B6," ",IF(E5=rd,"(Btu/gal)",IF(E5=rg,"(Btu/gal)"," "))) -> 
B11: Sulfur content of the fuel | E11: =IF(AND(E5=rd,E7>=600),"0.0015",IF(E5=tng,"0.00065","NA")) -> NA | F11: %
B13: Internal combustion engine potential and actual emissions
C14: a | D14: b | E14: c | F14: d | G14: e
B15: Pollutant | C15: GWP1 | D15: Engine Rated Output | E15: Actual Annual Throughput | F15: Potential Annual Hours3 | G15: Emission Factor | H15: Potential Emissions | I15: Actual Emissions | K15: Insignificant Activity4 Limits
D17: (MMBtu) | E17: (MMBtu/yr) | F17: (hr/yr) | G17: (lbs/MMBtu) | H17: (ton/yr) | I17: (tons/yr) | K17: (tons/yr)
D18: =IF(E5=select,0,IF(OR(E5=rd,E5=rg),(E7*E9/10^6),IF(OR(E5=ngl,OR(E5=ngr,OR(E5=tng,E5=ng2l))),(E7*E9/(10^6))))) -> 0 | E18: =IF(F8='Data validation'!C12,E8,IF(AND(F8='Data validation'!C13,E5=rd),(('Engine Emission Factors'!H48*E8)/1000000),IF(AND(F8='Data validation'!C13,E5=rg),(('Engine Emission Factors'!H49*E8)/1000000),IF(F8='Data validation'!C11,(E8*D18),IF(F8=" ",0))))) -> 0 | F18: =IF($E$6=so,0,IF($E$6=Routine,8760,IF($E$6=Emer,500))) -> 0 | G18: by pollutant | H18: (b * d * e) / 2000 | I18: (b * c * e) / 2000
B19: Criteria Air Pollutants | I19: see engine emission factors tab | J19: =SUM(J20:J26) -> 6
B20: PM | G20: =IF($E$5=rd,IF($E$7>=600,'Engine Emission Factors'!$C5,'Engine Emission Factors'!$B5),IF($E$5=rg,'Engine Emission Factors'!$E5,IF($E$5=tng,'Engine Emission Factors'!$D5,IF($E$5=ngr,'Engine Emission Factors'!$F5,IF($E$5=ngl,'Engine Emission Factors'!$G5,IF($E$5=ng2l,'Engine Emission Factors'!$H5,IF($E$5=select,'Engine Emission Factors'!$I6))))))) -> 0 | H20: =$D$18*$F$18*$G20/2000 -> 0 | I20: =($D$18*$E$18*$G20)/2000 -> 0 | J20: =IF(K20>H20,1,0) -> 1 | K20: 1
B21: PM10 | G21: =IF($E$5=rd,IF($E$7>=600,'Engine Emission Factors'!$C6,'Engine Emission Factors'!$B6),IF($E$5=rg,'Engine Emission Factors'!$E6,IF($E$5=tng,'Engine Emission Factors'!$D6,IF($E$5=ngr,'Engine Emission Factors'!$F6,IF($E$5=ngl,'Engine Emission Factors'!$G6,IF($E$5=ng2l,'Engine Emission Factors'!$H6,IF($E$5=select,'Engine Emission Factors'!$I7))))))) -> 0 | H21: =$D$18*$F$18*$G21/2000 -> 0 | I21: =($D$18*$E$18*$G21)/2000 -> 0 | J21: =IF(K21>H21,1,0) -> 1 | K21: 1
B22: PM2.5 | G22: =IF($E$5=rd,IF($E$7>=600,'Engine Emission Factors'!$C7,'Engine Emission Factors'!$B7),IF($E$5=rg,'Engine Emission Factors'!$E7,IF($E$5=tng,'Engine Emission Factors'!$D7,IF($E$5=ngr,'Engine Emission Factors'!$F7,IF($E$5=ngl,'Engine Emission Factors'!$G7,IF($E$5=ng2l,'Engine Emission Factors'!$H7,IF($E$5=select,'Engine Emission Factors'!$I8))))))) -> 0 | H22: 0 | I22: 0
B23: SOx | G23: =IF($E$5=rd,IF($E$7>=600,'Engine Emission Factors'!$C8*E11,'Engine Emission Factors'!$B8),IF($E$5=rg,'Engine Emission Factors'!$E8,IF($E$5=tng,'Engine Emission Factors'!$D8*E11,IF($E$5=ngr,'Engine Emission Factors'!$F8,IF($E$5=ngl,'Engine Emission Factors'!$G8,IF($E$5=ng2l,'Engine Emission Factors'!$H8,IF($E$5=select,'Engine Emission Factors'!$I9))))))) -> 0 | H23: 0 | I23: 0 | J23: 1 | K23: 1
B24: NOx | G24: =IF($E$5=rd,IF($E$7>=600,'Engine Emission Factors'!$C9,'Engine Emission Factors'!$B9),IF($E$5=rg,'Engine Emission Factors'!$E9,IF($E$5=tng,'Engine Emission Factors'!$D9,IF($E$5=ngr,'Engine Emission Factors'!$F9,IF($E$5=ngl,'Engine Emission Factors'!$G9,IF($E$5=ng2l,'Engine Emission Factors'!$H9,IF($E$5=select,'Engine Emission Factors'!$I10))))))) -> 0 | H24: 0 | I24: 0 | J24: 1 | K24: 1
B25: VOC | G25: =IF($E$5=rd,IF($E$7>=600,'Engine Emission Factors'!$C10,'Engine Emission Factors'!$B10),IF($E$5=rg,'Engine Emission Factors'!$E10,IF($E$5=tng,'Engine Emission Factors'!$D10,IF($E$5=ngr,'Engine Emission Factors'!$F10,IF($E$5=ngl,'Engine Emission Factors'!$G10,IF($E$5=ng2l,'Engine Emission Factors'!$H10,IF($E$5=select,'Engine Emission Factors'!$I11))))))) -> 0 | H25: 0 | I25: 0 | J25: 1 | K25: 1
B26: CO | G26: =IF($E$5=rd,IF($E$7>=600,'Engine Emission Factors'!$C11,'Engine Emission Factors'!$B11),IF($E$5=rg,'Engine Emission Factors'!$E11,IF($E$5=tng,'Engine Emission Factors'!$D11,IF($E$5=ngr,'Engine Emission Factors'!$F11,IF($E$5=ngl,'Engine Emission Factors'!$G11,IF($E$5=ng2l,'Engine Emission Factors'!$H11,IF($E$5=select,'Engine Emission Factors'!$I12))))))) -> 0 | H26: 0 | I26: 0 | J26: 1 | K26: 2
B27: Lead | G27: n/a | J27: 0
B28: Greenhouse Gas Emissions | I28: Source: 40 CFR 98, Subp. C, Table C-1 and C-2 | J28: 0
B29: CO2 2 | C29: 1 | G29: =IF($E$5=rd,IF($E$7>=600,'Engine Emission Factors'!$C13,'Engine Emission Factors'!$B13),IF($E$5=rg,'Engine Emission Factors'!$E13,IF($E$5=tng,'Engine Emission Factors'!$D13,IF($E$5=ngr,'Engine Emission Factors'!$F13,IF($E$5=ngl,'Engine Emission Factors'!$G13,IF($E$5=ng2l,'Engine Emission Factors'!$H13,IF($E$5=select,'Engine Emission Factors'!$I13))))))) -> 0 | H29: =$D$18*$F$18*$G29/2000 -> 0 | I29: =($D$18*$E$18*$G29)/2000 -> 0 | J29: 0
B30: CH4 2 | C30: 25 | G30: =IF($E$5=rd,IF($E$7>=600,'Engine Emission Factors'!$C14,'Engine Emission Factors'!$B14),IF($E$5=rg,'Engine Emission Factors'!$E14,IF($E$5=tng,'Engine Emission Factors'!$D14,IF($E$5=ngr,'Engine Emission Factors'!$F14,IF($E$5=ngl,'Engine Emission Factors'!$G14,IF($E$5=ng2l,'Engine Emission Factors'!$H14,IF($E$5=select,'Engine Emission Factors'!$I14))))))) -> 0 | H30: =$D$18*$F$18*$G30/2000 -> 0 | I30: =($D$18*$E$18*$G30)/2000 -> 0 | J30: 0
B31: N2O 2 | C31: 298 | G31: =IF($E$5=rd,IF($E$7>=600,'Engine Emission Factors'!$C15,'Engine Emission Factors'!$B15),IF($E$5=rg,'Engine Emission Factors'!$E15,IF($E$5=tng,'Engine Emission Factors'!$D15,IF($E$5=ngr,'Engine Emission Factors'!$F15,IF($E$5=ngl,'Engine Emission Factors'!$G15,IF($E$5=ng2l,'Engine Emission Factors'!$H15,IF($E$5=select,'Engine Emission Factors'!$I15))))))) -> 0 | H31: =$D$18*$F$18*$G31/2000 -> 0 | I31: =($D$18*$E$18*$G31)/2000 -> 0 | J31: 0
F32: GHG total (CO2e) 2 | H32: =(C29*H29)+(C30*H30)+(C31*H31) -> 0 | I32: =(C29*I29)+(C30*I30)+(C31*I31) -> 0 | J32: 1 | K32: 1000
B33: Hazardous Air Pollutants | G33: see engine emission factors tab
B34: 1,1,2,2-tetrachloroethane | G34: =IF($E$5=rd,IF($E$7>=600,'Engine Emission Factors'!$C17,'Engine Emission Factors'!$B17),IF($E$5=rg,'Engine Emission Factors'!$E17,IF($E$5=tng,'Engine Emission Factors'!$D17,IF($E$5=ngr,'Engine Emission Factors'!$F17,IF($E$5=ngl,'Engine Emission Factors'!$G17,IF($E$5=ng2l,'Engine Emission Factors'!$H17,IF($E$5=select,'Engine Emission Factors'!$I17))))))) -> 0 | H34: =$D$18*$F$18*$G34/2000 -> 0 | I34: =($D$18*$E$18*$G34)/2000 -> 0
B35: 1,1,2-trichloroethane | G35: =IF($E$5=rd,IF($E$7>=600,'Engine Emission Factors'!$C18,'Engine Emission Factors'!$B18),IF($E$5=rg,'Engine Emission Factors'!$E18,IF($E$5=tng,'Engine Emission Factors'!$D18,IF($E$5=ngr,'Engine Emission Factors'!$F18,IF($E$5=ngl,'Engine Emission Factors'!$G18,IF($E$5=ng2l,'Engine Emission Factors'!$H18,IF($E$5=select,'Engine Emission Factors'!$I18))))))) -> 0 | H35: 0 | I35: =($D$18*$E$18*$G35)/2000 -> 0
B36: 1,3-butadiene | G36: =IF($E$5=rd,IF($E$7>=600,'Engine Emission Factors'!$C19,'Engine Emission Factors'!$B19),IF($E$5=rg,'Engine Emission Factors'!$E19,IF($E$5=tng,'Engine Emission Factors'!$D19,IF($E$5=ngr,'Engine Emission Factors'!$F19,IF($E$5=ngl,'Engine Emission Factors'!$G19,IF($E$5=ng2l,'Engine Emission Factors'!$H19,IF($E$5=select,'Engine Emission Factors'!$I19))))))) -> 0 | H36: 0 | I36: 0
B37: 1,3-dichloropropene | G37: =IF($E$5=rd,IF($E$7>=600,'Engine Emission Factors'!$C20,'Engine Emission Factors'!$B20),IF($E$5=rg,'Engine Emission Factors'!$E20,IF($E$5=tng,'Engine Emission Factors'!$D20,IF($E$5=ngr,'Engine Emission Factors'!$F20,IF($E$5=ngl,'Engine Emission Factors'!$G20,IF($E$5=ng2l,'Engine Emission Factors'!$H20,IF($E$5=select,'Engine Emission Factors'!$I20))))))) -> 0 | H37: 0 | I37: 0
B38: Acetaldehyde | G38: =IF($E$5=rd,IF($E$7>=600,'Engine Emission Factors'!$C21,'Engine Emission Factors'!$B21),IF($E$5=rg,'Engine Emission Factors'!$E21,IF($E$5=tng,'Engine Emission Factors'!$D21,IF($E$5=ngr,'Engine Emission Factors'!$F21,IF($E$5=ngl,'Engine Emission Factors'!$G21,IF($E$5=ng2l,'Engine Emission Factors'!$H21,IF($E$5=select,'Engine Emission Factors'!$I21))))))) -> 0 | H38: 0 | I38: 0
B39: Acrolein | G39: =IF($E$5=rd,IF($E$7>=600,'Engine Emission Factors'!$C22,'Engine Emission Factors'!$B22),IF($E$5=rg,'Engine Emission Factors'!$E22,IF($E$5=tng,'Engine Emission Factors'!$D22,IF($E$5=ngr,'Engine Emission Factors'!$F22,IF($E$5=ngl,'Engine Emission Factors'!$G22,IF($E$5=ng2l,'Engine Emission Factors'!$H22,IF($E$5=select,'Engine Emission Factors'!$I22))))))) -> 0 | H39: 0 | I39: 0
B40: Benzene | G40: =IF($E$5=rd,IF($E$7>=600,'Engine Emission Factors'!$C23,'Engine Emission Factors'!$B23),IF($E$5=rg,'Engine Emission Factors'!$E23,IF($E$5=tng,'Engine Emission Factors'!$D23,IF($E$5=ngr,'Engine Emission Factors'!$F23,IF($E$5=ngl,'Engine Emission Factors'!$G23,IF($E$5=ng2l,'Engine Emission Factors'!$H23,IF($E$5=select,'Engine Emission Factors'!$I23))))))) -> 0 | H40: 0 | I40: 0
B41: Biphenyl | G41: =IF($E$5=rd,IF($E$7>=600,'Engine Emission Factors'!$C24,'Engine Emission Factors'!$B24),IF($E$5=rg,'Engine Emission Factors'!$E24,IF($E$5=tng,'Engine Emission Factors'!$D24,IF($E$5=ngr,'Engine Emission Factors'!$F24,IF($E$5=ngl,'Engine Emission Factors'!$G24,IF($E$5=ng2l,'Engine Emission Factors'!$H24,IF($E$5=select,'Engine Emission Factors'!$I24))))))) -> 0 | H41: 0 | I41: 0
B42: Carbon tetrachloride | G42: =IF($E$5=rd,IF($E$7>=600,'Engine Emission Factors'!$C25,'Engine Emission Factors'!$B25),IF($E$5=rg,'Engine Emission Factors'!$E25,IF($E$5=tng,'Engine Emission Factors'!$D25,IF($E$5=ngr,'Engine Emission Factors'!$F25,IF($E$5=ngl,'Engine Emission Factors'!$G25,IF($E$5=ng2l,'Engine Emission Factors'!$H25,IF($E$5=select,'Engine Emission Factors'!$I25))))))) -> 0 | H42: 0 | I42: 0
B43: Chlorobenzene | G43: =IF($E$5=rd,IF($E$7>=600,'Engine Emission Factors'!$C26,'Engine Emission Factors'!$B26),IF($E$5=rg,'Engine Emission Factors'!$E26,IF($E$5=tng,'Engine Emission Factors'!$D26,IF($E$5=ngr,'Engine Emission Factors'!$F26,IF($E$5=ngl,'Engine Emission Factors'!$G26,IF($E$5=ng2l,'Engine Emission Factors'!$H26,IF($E$5=select,'Engine Emission Factors'!$I26))))))) -> 0 | H43: 0 | I43: 0
B44: Chloroform | G44: =IF($E$5=rd,IF($E$7>=600,'Engine Emission Factors'!$C27,'Engine Emission Factors'!$B27),IF($E$5=rg,'Engine Emission Factors'!$E27,IF($E$5=tng,'Engine Emission Factors'!$D27,IF($E$5=ngr,'Engine Emission Factors'!$F27,IF($E$5=ngl,'Engine Emission Factors'!$G27,IF($E$5=ng2l,'Engine Emission Factors'!$H27,IF($E$5=select,'Engine Emission Factors'!$I27))))))) -> 0 | H44: 0 | I44: 0
B45: Ethylbenzene | G45: =IF($E$5=rd,IF($E$7>=600,'Engine Emission Factors'!$C28,'Engine Emission Factors'!$B28),IF($E$5=rg,'Engine Emission Factors'!$E28,IF($E$5=tng,'Engine Emission Factors'!$D28,IF($E$5=ngr,'Engine Emission Factors'!$F28,IF($E$5=ngl,'Engine Emission Factors'!$G28,IF($E$5=ng2l,'Engine Emission Factors'!$H28,IF($E$5=select,'Engine Emission Factors'!$I28))))))) -> 0 | H45: 0 | I45: 0
B46: Ethylene dibromide | G46: =IF($E$5=rd,IF($E$7>=600,'Engine Emission Factors'!$C29,'Engine Emission Factors'!$B29),IF($E$5=rg,'Engine Emission Factors'!$E29,IF($E$5=tng,'Engine Emission Factors'!$D29,IF($E$5=ngr,'Engine Emission Factors'!$F29,IF($E$5=ngl,'Engine Emission Factors'!$G29,IF($E$5=ng2l,'Engine Emission Factors'!$H29,IF($E$5=select,'Engine Emission Factors'!$I29))))))) -> 0 | H46: 0 | I46: 0
B47: Formaldehyde | G47: =IF($E$5=rd,IF($E$7>=600,'Engine Emission Factors'!$C30,'Engine Emission Factors'!$B30),IF($E$5=rg,'Engine Emission Factors'!$E30,IF($E$5=tng,'Engine Emission Factors'!$D30,IF($E$5=ngr,'Engine Emission Factors'!$F30,IF($E$5=ngl,'Engine Emission Factors'!$G30,IF($E$5=ng2l,'Engine Emission Factors'!$H30,IF($E$5=select,'Engine Emission Factors'!$I30))))))) -> 0 | H47: 0 | I47: 0
B48: Hexane | G48: =IF($E$5=rd,IF($E$7>=600,'Engine Emission Factors'!$C31,'Engine Emission Factors'!$B31),IF($E$5=rg,'Engine Emission Factors'!$E31,IF($E$5=tng,'Engine Emission Factors'!$D31,IF($E$5=ngr,'Engine Emission Factors'!$F31,IF($E$5=ngl,'Engine Emission Factors'!$G31,IF($E$5=ng2l,'Engine Emission Factors'!$H31,IF($E$5=select,'Engine Emission Factors'!$I31))))))) -> 0 | H48: 0 | I48: 0
B49: Methanol | G49: =IF($E$5=rd,IF($E$7>=600,'Engine Emission Factors'!$C32,'Engine Emission Factors'!$B32),IF($E$5=rg,'Engine Emission Factors'!$E32,IF($E$5=tng,'Engine Emission Factors'!$D32,IF($E$5=ngr,'Engine Emission Factors'!$F32,IF($E$5=ngl,'Engine Emission Factors'!$G32,IF($E$5=ng2l,'Engine Emission Factors'!$H32,IF($E$5=select,'Engine Emission Factors'!$I32))))))) -> 0 | H49: 0 | I49: 0
B50: Methylene chloride | G50: =IF($E$5=rd,IF($E$7>=600,'Engine Emission Factors'!$C33,'Engine Emission Factors'!$B33),IF($E$5=rg,'Engine Emission Factors'!$E33,IF($E$5=tng,'Engine Emission Factors'!$D33,IF($E$5=ngr,'Engine Emission Factors'!$F33,IF($E$5=ngl,'Engine Emission Factors'!$G33,IF($E$5=ng2l,'Engine Emission Factors'!$H33,IF($E$5=select,'Engine Emission Factors'!$I33))))))) -> 0 | H50: 0 | I50: 0
B51: Naphthalene | G51: =IF($E$5=rd,IF($E$7>=600,'Engine Emission Factors'!$C34,'Engine Emission Factors'!$B34),IF($E$5=rg,'Engine Emission Factors'!$E34,IF($E$5=tng,'Engine Emission Factors'!$D34,IF($E$5=ngr,'Engine Emission Factors'!$F34,IF($E$5=ngl,'Engine Emission Factors'!$G34,IF($E$5=ng2l,'Engine Emission Factors'!$H34,IF($E$5=select,'Engine Emission Factors'!$I34))))))) -> 0 | H51: 0 | I51: 0
B52: PAH | G52: =IF($E$5=rd,IF($E$7>=600,'Engine Emission Factors'!$C35,'Engine Emission Factors'!$B35),IF($E$5=rg,'Engine Emission Factors'!$E35,IF($E$5=tng,'Engine Emission Factors'!$D35,IF($E$5=ngr,'Engine Emission Factors'!$F35,IF($E$5=ngl,'Engine Emission Factors'!$G35,IF($E$5=ng2l,'Engine Emission Factors'!$H35,IF($E$5=select,'Engine Emission Factors'!$I35))))))) -> 0 | H52: 0 | I52: 0
B53: Phenol | G53: =IF($E$5=rd,IF($E$7>=600,'Engine Emission Factors'!$C36,'Engine Emission Factors'!$B36),IF($E$5=rg,'Engine Emission Factors'!$E36,IF($E$5=tng,'Engine Emission Factors'!$D36,IF($E$5=ngr,'Engine Emission Factors'!$F36,IF($E$5=ngl,'Engine Emission Factors'!$G36,IF($E$5=ng2l,'Engine Emission Factors'!$H36,IF($E$5=select,'Engine Emission Factors'!$I36))))))) -> 0 | H53: 0 | I53: 0
B54: Styrene | G54: =IF($E$5=rd,IF($E$7>=600,'Engine Emission Factors'!$C37,'Engine Emission Factors'!$B37),IF($E$5=rg,'Engine Emission Factors'!$E37,IF($E$5=tng,'Engine Emission Factors'!$D37,IF($E$5=ngr,'Engine Emission Factors'!$F37,IF($E$5=ngl,'Engine Emission Factors'!$G37,IF($E$5=ng2l,'Engine Emission Factors'!$H37,IF($E$5=select,'Engine Emission Factors'!$I37))))))) -> 0 | H54: 0 | I54: 0
B55: Tetrachloroethane | G55: =IF($E$5=rd,IF($E$7>=600,'Engine Emission Factors'!$C38,'Engine Emission Factors'!$B38),IF($E$5=rg,'Engine Emission Factors'!$E38,IF($E$5=tng,'Engine Emission Factors'!$D38,IF($E$5=ngr,'Engine Emission Factors'!$F38,IF($E$5=ngl,'Engine Emission Factors'!$G38,IF($E$5=ng2l,'Engine Emission Factors'!$H38,IF($E$5=select,'Engine Emission Factors'!$I38))))))) -> 0 | H55: 0 | I55: 0
B56: Toluene | G56: =IF($E$5=rd,IF($E$7>=600,'Engine Emission Factors'!$C39,'Engine Emission Factors'!$B39),IF($E$5=rg,'Engine Emission Factors'!$E39,IF($E$5=tng,'Engine Emission Factors'!$D39,IF($E$5=ngr,'Engine Emission Factors'!$F39,IF($E$5=ngl,'Engine Emission Factors'!$G39,IF($E$5=ng2l,'Engine Emission Factors'!$H39,IF($E$5=select,'Engine Emission Factors'!$I39))))))) -> 0 | H56: 0 | I56: 0
B57: Vinyl chloride | G57: =IF($E$5=rd,IF($E$7>=600,'Engine Emission Factors'!$C40,'Engine Emission Factors'!$B40),IF($E$5=rg,'Engine Emission Factors'!$E40,IF($E$5=tng,'Engine Emission Factors'!$D40,IF($E$5=ngr,'Engine Emission Factors'!$F40,IF($E$5=ngl,'Engine Emission Factors'!$G40,IF($E$5=ng2l,'Engine Emission Factors'!$H40,IF($E$5=select,'Engine Emission Factors'!$I40))))))) -> 0 | H57: 0 | I57: 0
B58: Xylene | G58: =IF($E$5=rd,IF($E$7>=600,'Engine Emission Factors'!$C41,'Engine Emission Factors'!$B41),IF($E$5=rg,'Engine Emission Factors'!$E41,IF($E$5=tng,'Engine Emission Factors'!$D41,IF($E$5=ngr,'Engine Emission Factors'!$F41,IF($E$5=ngl,'Engine Emission Factors'!$G41,IF($E$5=ng2l,'Engine Emission Factors'!$H41,IF($E$5=select,'Engine Emission Factors'!$I41))))))) -> 0 | H58: 0 | I58: 0
F59: HAP total | H59: =SUM(H34:H58) -> 0 | I59: =SUM(I34:I58) -> 0
B60: 1 Global Warming Potential from 40 CFR Part 98, Subpart A, Table A-1 | F60: 4 See information on insignficnat activities at Minn. R. 7007.1300 and on the 'Permits & Requirements' tab.
B61: 2 CO2e = carbon dioxide equivalents
B62: 3 Routine = 24 hr/day * 365 day/yr or 8760 hr/yr; Emergency = 500 hr/yr | F62: Minn. R. 7007.1300

Sheet Generator
B1: =Instructions!G2 -> p-sbap5-30 • 4/22/19
B2: Air emissions from the generator
B3: Reciprocating internal combustion engine (RICE)
B5: Engine and fuel type | E5: Choose one | G5: Facility identifier for engine | I5: Generator
B6: Engine use | E6: Choose one | F6: If emergency engine is used for peak-shaving or contracted for >15 hr/yr, choose 'Routine.'
B7: =IF(E5='Data validation'!B6," ",IF(OR(E5=rd,E5=rg),"Rated mechanical output",IF(OR(E5=ngl,OR(E5=ngr,OR(E5=tng,E5=ng2l))),"Rated fuel input"," "))) ->  | E7: 0 | F7: =IF(B7=" "," ",IF(B7="Rated mechanical output",'Data validation'!B21,IF(B7="Rated fuel input",'Data validation'!B22))) -> 
B8: Choose one to calculate actual emissions | E8: 0 | F8: =IF(B8='Data validation'!C5," ",IF(B8='Data validation'!C6,'Data validation'!C11,IF(AND(B8='Data validation'!C7,OR(E5=tng,OR(E5=ngl,OR(E5=ngr,OR(E5=ng2l))))),'Data validation'!C12,IF(AND(B8='Data validation'!C7,OR(E5=rd,OR(E5=rg))),'Data validation'!C13," ")))) -> 
B9: =IF(F7=" "," ",IF(F7='Data validation'!B21,'Data validation'!B25,IF(F7='Data validation'!B22,'Data validation'!B26))) ->  | E9: =IF(E5='Data validation'!A6," ",IF(E5=rd,'Engine Emission Factors'!F48,IF(E5=rg,'Engine Emission Factors'!F49,IF(OR(E5=ngl,OR(E5=ngr,OR(E5=tng,E5=ng2l))),'Engine Emission Factors'!G47," ")))) ->  | F9: =IF(B9=" "," ",IF(B9='Data validation'!B25,"(Btu/HP-hr)",IF(B9='Data validation'!B26,"Btu/scf"))) -> 
B10: =IF(E5='Data validation'!B6," ",IF(E5=rd,"Heat value of fuel",IF(E5=rg,"Heat value of fuel"," "))) ->  | D10: Heat value of fuel | E10: =IF(E5=rd,'Engine Emission Factors'!H48,IF(E5=rg,'Engine Emission Factors'!H49," ")) ->  | F10: =IF(E5='Data validation'!B6," ",IF(E5=rd,"(Btu/gal)",IF(E5=rg,"(Btu/gal)"," "))) -> 
B11: Sulfur content of the fuel | E11: =IF(AND(E5=rd,E7>=600),"0.0015",IF(E5=tng,"0.00065","NA")) -> NA | F11: %
B13: Internal combustion engine potential and actual emissions
C14: a | D14: b | E14: c | F14: d | G14: e
B15: Pollutant | C15: GWP1 | D15: Engine Rated Output | E15: Actual Annual Throughput | F15: Potential Annual Hours3 | G15: Emission Factor | H15: Potential Emissions | I15: Actual Emissions | K15: Insignificant Activity4 Limits
D17: (MMBtu) | E17: (MMBtu/yr) | F17: (hr/yr) | G17: (lbs/MMBtu) | H17: (ton/yr) | I17: (tons/yr) | K17: (tons/yr)
D18: =IF(E5=select,0,IF(OR(E5=rd,E5=rg),(E7*E9/10^6),IF(OR(E5=ngl,OR(E5=ngr,OR(E5=tng,E5=ng2l))),(E7*E9/(10^6))))) -> 0 | E18: =IF(F8='Data validation'!C12,E8,IF(AND(F8='Data validation'!C13,E5=rd),(('Engine Emission Factors'!H48*E8)/1000000),IF(AND(F8='Data validation'!C13,E5=rg),(('Engine Emission Factors'!H49*E8)/1000000),IF(F8='Data validation'!C11,(E8*D18),IF(F8=" ",0))))) -> 0 | F18: =IF($E$6=so,0,IF($E$6=Routine,8760,IF($E$6=Emer,500))) -> 0 | G18: by pollutant | H18: (b * d * e) / 2000 | I18: (b * c * e) / 2000
B19: Criteria Air Pollutants | I19: see engine emission factors tab | J19: =SUM(J20:J26) -> 6
B20: PM | G20: =IF($E$5=rd,IF($E$7>=600,'Engine Emission Factors'!$C5,'Engine Emission Factors'!$B5),IF($E$5=rg,'Engine Emission Factors'!$E5,IF($E$5=tng,'Engine Emission Factors'!$D5,IF($E$5=ngr,'Engine Emission Factors'!$F5,IF($E$5=ngl,'Engine Emission Factors'!$G5,IF($E$5=ng2l,'Engine Emission Factors'!$H5,IF($E$5=select,'Engine Emission Factors'!$I6))))))) -> 0 | H20: =$D$18*$F$18*$G20/2000 -> 0 | I20: =($D$18*$E$18*$G20)/2000 -> 0 | J20: =IF(K20>H20,1,0) -> 1 | K20: 1
B21: PM10 | G21: =IF($E$5=rd,IF($E$7>=600,'Engine Emission Factors'!$C6,'Engine Emission Factors'!$B6),IF($E$5=rg,'Engine Emission Factors'!$E6,IF($E$5=tng,'Engine Emission Factors'!$D6,IF($E$5=ngr,'Engine Emission Factors'!$F6,IF($E$5=ngl,'Engine Emission Factors'!$G6,IF($E$5=ng2l,'Engine Emission Factors'!$H6,IF($E$5=select,'Engine Emission Factors'!$I7))))))) -> 0 | H21: =$D$18*$F$18*$G21/2000 -> 0 | I21: =($D$18*$E$18*$G21)/2000 -> 0 | J21: =IF(K21>H21,1,0) -> 1 | K21: 1
B22: PM2.5 | G22: =IF($E$5=rd,IF($E$7>=600,'Engine Emission Factors'!$C7,'Engine Emission Factors'!$B7),IF($E$5=rg,'Engine Emission Factors'!$E7,IF($E$5=tng,'Engine Emission Factors'!$D7,IF($E$5=ngr,'Engine Emission Factors'!$F7,IF($E$5=ngl,'Engine Emission Factors'!$G7,IF($E$5=ng2l,'Engine Emission Factors'!$H7,IF($E$5=select,'Engine Emission Factors'!$I8))))))) -> 0 | H22: 0 | I22: 0
B23: SOx | G23: =IF($E$5=rd,IF($E$7>=600,'Engine Emission Factors'!$C8*E11,'Engine Emission Factors'!$B8),IF($E$5=rg,'Engine Emission Factors'!$E8,IF($E$5=tng,'Engine Emission Factors'!$D8*E11,IF($E$5=ngr,'Engine Emission Factors'!$F8,IF($E$5=ngl,'Engine Emission Factors'!$G8,IF($E$5=ng2l,'Engine Emission Factors'!$H8,IF($E$5=select,'Engine Emission Factors'!$I9))))))) -> 0 | H23: 0 | I23: 0 | J23: 1 | K23: 1
B24: NOx | G24: =IF($E$5=rd,IF($E$7>=600,'Engine Emission Factors'!$C9,'Engine Emission Factors'!$B9),IF($E$5=rg,'Engine Emission Factors'!$E9,IF($E$5=tng,'Engine Emission Factors'!$D9,IF($E$5=ngr,'Engine Emission Factors'!$F9,IF($E$5=ngl,'Engine Emission Factors'!$G9,IF($E$5=ng2l,'Engine Emission Factors'!$H9,IF($E$5=select,'Engine Emission Factors'!$I10))))))) -> 0 | H24: 0 | I24: 0 | J24: 1 | K24: 1
B25: VOC | G25: =IF($E$5=rd,IF($E$7>=600,'Engine Emission Factors'!$C10,'Engine Emission Factors'!$B10),IF($E$5=rg,'Engine Emission Factors'!$E10,IF($E$5=tng,'Engine Emission Factors'!$D10,IF($E$5=ngr,'Engine Emission Factors'!$F10,IF($E$5=ngl,'Engine Emission Factors'!$G10,IF($E$5=ng2l,'Engine Emission Factors'!$H10,IF($E$5=select,'Engine Emission Factors'!$I11))))))) -> 0 | H25: 0 | I25: 0 | J25: 1 | K25: 1
B26: CO | G26: =IF($E$5=rd,IF($E$7>=600,'Engine Emission Factors'!$C11,'Engine Emission Factors'!$B11),IF($E$5=rg,'Engine Emission Factors'!$E11,IF($E$5=tng,'Engine Emission Factors'!$D11,IF($E$5=ngr,'Engine Emission Factors'!$F11,IF($E$5=ngl,'Engine Emission Factors'!$G11,IF($E$5=ng2l,'Engine Emission Factors'!$H11,IF($E$5=select,'Engine Emission Factors'!$I12))))))) -> 0 | H26: 0 | I26: 0 | J26: 1 | K26: 2
B27: Lead | G27: n/a | J27: 0
B28: Greenhouse Gas Emissions | G28: Source: 40 CFR 98, Subp. C, Table C-1 and C-2 | J28: 0
B29: CO2 2 | C29: 1 | G29: =IF($E$5=rd,IF($E$7>=600,'Engine Emission Factors'!$C13,'Engine Emission Factors'!$B13),IF($E$5=rg,'Engine Emission Factors'!$E13,IF($E$5=tng,'Engine Emission Factors'!$D13,IF($E$5=ngr,'Engine Emission Factors'!$F13,IF($E$5=ngl,'Engine Emission Factors'!$G13,IF($E$5=ng2l,'Engine Emission Factors'!$H13,IF($E$5=select,'Engine Emission Factors'!$I13))))))) -> 0 | H29: =$D$18*$F$18*$G29/2000 -> 0 | I29: =($D$18*$E$18*$G29)/2000 -> 0 | J29: 0
B30: CH4 2 | C30: 25 | G30: =IF($E$5=rd,IF($E$7>=600,'Engine Emission Factors'!$C14,'Engine Emission Factors'!$B14),IF($E$5=rg,'Engine Emission Factors'!$E14,IF($E$5=tng,'Engine Emission Factors'!$D14,IF($E$5=ngr,'Engine Emission Factors'!$F14,IF($E$5=ngl,'Engine Emission Factors'!$G14,IF($E$5=ng2l,'Engine Emission Factors'!$H14,IF($E$5=select,'Engine Emission Factors'!$I14))))))) -> 0 | H30: =$D$18*$F$18*$G30/2000 -> 0 | I30: =($D$18*$E$18*$G30)/2000 -> 0 | J30: 0
B31: N2O 2 | C31: 298 | G31: =IF($E$5=rd,IF($E$7>=600,'Engine Emission Factors'!$C15,'Engine Emission Factors'!$B15),IF($E$5=rg,'Engine Emission Factors'!$E15,IF($E$5=tng,'Engine Emission Factors'!$D15,IF($E$5=ngr,'Engine Emission Factors'!$F15,IF($E$5=ngl,'Engine Emission Factors'!$G15,IF($E$5=ng2l,'Engine Emission Factors'!$H15,IF($E$5=select,'Engine Emission Factors'!$I15))))))) -> 0 | H31: =$D$18*$F$18*$G31/2000 -> 0 | I31: =($D$18*$E$18*$G31)/2000 -> 0 | J31: 0
F32: GHG total (CO2e) 2 | H32: =(C29*H29)+(C30*H30)+(C31*H31) -> 0 | I32: =(C29*I29)+(C30*I30)+(C31*I31) -> 0 | J32: 1 | K32: 1000
B33: Hazardous Air Pollutants | G33: see engine emission factors tab
B34: 1,1,2,2-tetrachloroethane | G34: =IF($E$5=rd,IF($E$7>=600,'Engine Emission Factors'!$C17,'Engine Emission Factors'!$B17),IF($E$5=rg,'Engine Emission Factors'!$E17,IF($E$5=tng,'Engine Emission Factors'!$D17,IF($E$5=ngr,'Engine Emission Factors'!$F17,IF($E$5=ngl,'Engine Emission Factors'!$G17,IF($E$5=ng2l,'Engine Emission Factors'!$H17,IF($E$5=select,'Engine Emission Factors'!$I17))))))) -> 0 | H34: =$D$18*$F$18*$G34/2000 -> 0 | I34: =($D$18*$E$18*$G34)/2000 -> 0
B35: 1,1,2-trichloroethane | G35: =IF($E$5=rd,IF($E$7>=600,'Engine Emission Factors'!$C18,'Engine Emission Factors'!$B18),IF($E$5=rg,'Engine Emission Factors'!$E18,IF($E$5=tng,'Engine Emission Factors'!$D18,IF($E$5=ngr,'Engine Emission Factors'!$F18,IF($E$5=ngl,'Engine Emission Factors'!$G18,IF($E$5=ng2l,'Engine Emission Factors'!$H18,IF($E$5=select,'Engine Emission Factors'!$I18))))))) -> 0 | H35: 0 | I35: =($D$18*$E$18*$G35)/2000 -> 0
B36: 1,3-butadiene | G36: =IF($E$5=rd,IF($E$7>=600,'Engine Emission Factors'!$C19,'Engine Emission Factors'!$B19),IF($E$5=rg,'Engine Emission Factors'!$E19,IF($E$5=tng,'Engine Emission Factors'!$D19,IF($E$5=ngr,'Engine Emission Factors'!$F19,IF($E$5=ngl,'Engine Emission Factors'!$G19,IF($E$5=ng2l,'Engine Emission Factors'!$H19,IF($E$5=select,'Engine Emission Factors'!$I19))))))) -> 0 | H36: 0 | I36: 0
B37: 1,3-dichloropropene | G37: =IF($E$5=rd,IF($E$7>=600,'Engine Emission Factors'!$C20,'Engine Emission Factors'!$B20),IF($E$5=rg,'Engine Emission Factors'!$E20,IF($E$5=tng,'Engine Emission Factors'!$D20,IF($E$5=ngr,'Engine Emission Factors'!$F20,IF($E$5=ngl,'Engine Emission Factors'!$G20,IF($E$5=ng2l,'Engine Emission Factors'!$H20,IF($E$5=select,'Engine Emission Factors'!$I20))))))) -> 0 | H37: 0 | I37: 0
B38: Acetaldehyde | G38: =IF($E$5=rd,IF($E$7>=600,'Engine Emission Factors'!$C21,'Engine Emission Factors'!$B21),IF($E$5=rg,'Engine Emission Factors'!$E21,IF($E$5=tng,'Engine Emission Factors'!$D21,IF($E$5=ngr,'Engine Emission Factors'!$F21,IF($E$5=ngl,'Engine Emission Factors'!$G21,IF($E$5=ng2l,'Engine Emission Factors'!$H21,IF($E$5=select,'Engine Emission Factors'!$I21))))))) -> 0 | H38: 0 | I38: 0
B39: Acrolein | G39: =IF($E$5=rd,IF($E$7>=600,'Engine Emission Factors'!$C22,'Engine Emission Factors'!$B22),IF($E$5=rg,'Engine Emission Factors'!$E22,IF($E$5=tng,'Engine Emission Factors'!$D22,IF($E$5=ngr,'Engine Emission Factors'!$F22,IF($E$5=ngl,'Engine Emission Factors'!$G22,IF($E$5=ng2l,'Engine Emission Factors'!$H22,IF($E$5=select,'Engine Emission Factors'!$I22))))))) -> 0 | H39: 0 | I39: 0
B40: Benzene | G40: =IF($E$5=rd,IF($E$7>=600,'Engine Emission Factors'!$C23,'Engine Emission Factors'!$B23),IF($E$5=rg,'Engine Emission Factors'!$E23,IF($E$5=tng,'Engine Emission Factors'!$D23,IF($E$5=ngr,'Engine Emission Factors'!$F23,IF($E$5=ngl,'Engine Emission Factors'!$G23,IF($E$5=ng2l,'Engine Emission Factors'!$H23,IF($E$5=select,'Engine Emission Factors'!$I23))))))) -> 0 | H40: 0 | I40: 0
B41: Biphenyl | G41: =IF($E$5=rd,IF($E$7>=600,'Engine Emission Factors'!$C24,'Engine Emission Factors'!$B24),IF($E$5=rg,'Engine Emission Factors'!$E24,IF($E$5=tng,'Engine Emission Factors'!$D24,IF($E$5=ngr,'Engine Emission Factors'!$F24,IF($E$5=ngl,'Engine Emission Factors'!$G24,IF($E$5=ng2l,'Engine Emission Factors'!$H24,IF($E$5=select,'Engine Emission Factors'!$I24))))))) -> 0 | H41: 0 | I41: 0
B42: Carbon tetrachloride | G42: =IF($E$5=rd,IF($E$7>=600,'Engine Emission Factors'!$C25,'Engine Emission Factors'!$B25),IF($E$5=rg,'Engine Emission Factors'!$E25,IF($E$5=tng,'Engine Emission Factors'!$D25,IF($E$5=ngr,'Engine Emission Factors'!$F25,IF($E$5=ngl,'Engine Emission Factors'!$G25,IF($E$5=ng2l,'Engine Emission Factors'!$H25,IF($E$5=select,'Engine Emission Factors'!$I25))))))) -> 0 | H42: 0 | I42: 0
B43: Chlorobenzene | G43: =IF($E$5=rd,IF($E$7>=600,'Engine Emission Factors'!$C26,'Engine Emission Factors'!$B26),IF($E$5=rg,'Engine Emission Factors'!$E26,IF($E$5=tng,'Engine Emission Factors'!$D26,IF($E$5=ngr,'Engine Emission Factors'!$F26,IF($E$5=ngl,'Engine Emission Factors'!$G26,IF($E$5=ng2l,'Engine Emission Factors'!$H26,IF($E$5=select,'Engine Emission Factors'!$I26))))))) -> 0 | H43: 0 | I43: 0
B44: Chloroform | G44: =IF($E$5=rd,IF($E$7>=600,'Engine Emission Factors'!$C27,'Engine Emission Factors'!$B27),IF($E$5=rg,'Engine Emission Factors'!$E27,IF($E$5=tng,'Engine Emission Factors'!$D27,IF($E$5=ngr,'Engine Emission Factors'!$F27,IF($E$5=ngl,'Engine Emission Factors'!$G27,IF($E$5=ng2l,'Engine Emission Factors'!$H27,IF($E$5=select,'Engine Emission Factors'!$I27))))))) -> 0 | H44: 0 | I44: 0
B45: Ethylbenzene | G45: =IF($E$5=rd,IF($E$7>=600,'Engine Emission Factors'!$C28,'Engine Emission Factors'!$B28),IF($E$5=rg,'Engine Emission Factors'!$E28,IF($E$5=tng,'Engine Emission Factors'!$D28,IF($E$5=ngr,'Engine Emission Factors'!$F28,IF($E$5=ngl,'Engine Emission Factors'!$G28,IF($E$5=ng2l,'Engine Emission Factors'!$H28,IF($E$5=select,'Engine Emission Factors'!$I28))))))) -> 0 | H45: 0 | I45: 0
B46: Ethylene dibromide | G46: =IF($E$5=rd,IF($E$7>=600,'Engine Emission Factors'!$C29,'Engine Emission Factors'!$B29),IF($E$5=rg,'Engine Emission Factors'!$E29,IF($E$5=tng,'Engine Emission Factors'!$D29,IF($E$5=ngr,'Engine Emission Factors'!$F29,IF($E$5=ngl,'Engine Emission Factors'!$G29,IF($E$5=ng2l,'Engine Emission Factors'!$H29,IF($E$5=select,'Engine Emission Factors'!$I29))))))) -> 0 | H46: 0 | I46: 0
B47: Formaldehyde | G47: =IF($E$5=rd,IF($E$7>=600,'Engine Emission Factors'!$C30,'Engine Emission Factors'!$B30),IF($E$5=rg,'Engine Emission Factors'!$E30,IF($E$5=tng,'Engine Emission Factors'!$D30,IF($E$5=ngr,'Engine Emission Factors'!$F30,IF($E$5=ngl,'Engine Emission Factors'!$G30,IF($E$5=ng2l,'Engine Emission Factors'!$H30,IF($E$5=select,'Engine Emission Factors'!$I30))))))) -> 0 | H47: 0 | I47: 0
B48: Hexane | G48: =IF($E$5=rd,IF($E$7>=600,'Engine Emission Factors'!$C31,'Engine Emission Factors'!$B31),IF($E$5=rg,'Engine Emission Factors'!$E31,IF($E$5=tng,'Engine Emission Factors'!$D31,IF($E$5=ngr,'Engine Emission Factors'!$F31,IF($E$5=ngl,'Engine Emission Factors'!$G31,IF($E$5=ng2l,'Engine Emission Factors'!$H31,IF($E$5=select,'Engine Emission Factors'!$I31))))))) -> 0 | H48: 0 | I48: 0
B49: Methanol | G49: =IF($E$5=rd,IF($E$7>=600,'Engine Emission Factors'!$C32,'Engine Emission Factors'!$B32),IF($E$5=rg,'Engine Emission Factors'!$E32,IF($E$5=tng,'Engine Emission Factors'!$D32,IF($E$5=ngr,'Engine Emission Factors'!$F32,IF($E$5=ngl,'Engine Emission Factors'!$G32,IF($E$5=ng2l,'Engine Emission Factors'!$H32,IF($E$5=select,'Engine Emission Factors'!$I32))))))) -> 0 | H49: 0 | I49: 0
B50: Methylene chloride | G50: =IF($E$5=rd,IF($E$7>=600,'Engine Emission Factors'!$C33,'Engine Emission Factors'!$B33),IF($E$5=rg,'Engine Emission Factors'!$E33,IF($E$5=tng,'Engine Emission Factors'!$D33,IF($E$5=ngr,'Engine Emission Factors'!$F33,IF($E$5=ngl,'Engine Emission Factors'!$G33,IF($E$5=ng2l,'Engine Emission Factors'!$H33,IF($E$5=select,'Engine Emission Factors'!$I33))))))) -> 0 | H50: 0 | I50: 0
B51: Naphthalene | G51: =IF($E$5=rd,IF($E$7>=600,'Engine Emission Factors'!$C34,'Engine Emission Factors'!$B34),IF($E$5=rg,'Engine Emission Factors'!$E34,IF($E$5=tng,'Engine Emission Factors'!$D34,IF($E$5=ngr,'Engine Emission Factors'!$F34,IF($E$5=ngl,'Engine Emission Factors'!$G34,IF($E$5=ng2l,'Engine Emission Factors'!$H34,IF($E$5=select,'Engine Emission Factors'!$I34))))))) -> 0 | H51: 0 | I51: 0
B52: PAH | G52: =IF($E$5=rd,IF($E$7>=600,'Engine Emission Factors'!$C35,'Engine Emission Factors'!$B35),IF($E$5=rg,'Engine Emission Factors'!$E35,IF($E$5=tng,'Engine Emission Factors'!$D35,IF($E$5=ngr,'Engine Emission Factors'!$F35,IF($E$5=ngl,'Engine Emission Factors'!$G35,IF($E$5=ng2l,'Engine Emission Factors'!$H35,IF($E$5=select,'Engine Emission Factors'!$I35))))))) -> 0 | H52: 0 | I52: 0
B53: Phenol | G53: =IF($E$5=rd,IF($E$7>=600,'Engine Emission Factors'!$C36,'Engine Emission Factors'!$B36),IF($E$5=rg,'Engine Emission Factors'!$E36,IF($E$5=tng,'Engine Emission Factors'!$D36,IF($E$5=ngr,'Engine Emission Factors'!$F36,IF($E$5=ngl,'Engine Emission Factors'!$G36,IF($E$5=ng2l,'Engine Emission Factors'!$H36,IF($E$5=select,'Engine Emission Factors'!$I36))))))) -> 0 | H53: 0 | I53: 0
B54: Styrene | G54: =IF($E$5=rd,IF($E$7>=600,'Engine Emission Factors'!$C37,'Engine Emission Factors'!$B37),IF($E$5=rg,'Engine Emission Factors'!$E37,IF($E$5=tng,'Engine Emission Factors'!$D37,IF($E$5=ngr,'Engine Emission Factors'!$F37,IF($E$5=ngl,'Engine Emission Factors'!$G37,IF($E$5=ng2l,'Engine Emission Factors'!$H37,IF($E$5=select,'Engine Emission Factors'!$I37))))))) -> 0 | H54: 0 | I54: 0
B55: Tetrachloroethane | G55: =IF($E$5=rd,IF($E$7>=600,'Engine Emission Factors'!$C38,'Engine Emission Factors'!$B38),IF($E$5=rg,'Engine Emission Factors'!$E38,IF($E$5=tng,'Engine Emission Factors'!$D38,IF($E$5=ngr,'Engine Emission Factors'!$F38,IF($E$5=ngl,'Engine Emission Factors'!$G38,IF($E$5=ng2l,'Engine Emission Factors'!$H38,IF($E$5=select,'Engine Emission Factors'!$I38))))))) -> 0 | H55: 0 | I55: 0
B56: Toluene | G56: =IF($E$5=rd,IF($E$7>=600,'Engine Emission Factors'!$C39,'Engine Emission Factors'!$B39),IF($E$5=rg,'Engine Emission Factors'!$E39,IF($E$5=tng,'Engine Emission Factors'!$D39,IF($E$5=ngr,'Engine Emission Factors'!$F39,IF($E$5=ngl,'Engine Emission Factors'!$G39,IF($E$5=ng2l,'Engine Emission Factors'!$H39,IF($E$5=select,'Engine Emission Factors'!$I39))))))) -> 0 | H56: 0 | I56: 0
B57: Vinyl chloride | G57: =IF($E$5=rd,IF($E$7>=600,'Engine Emission Factors'!$C40,'Engine Emission Factors'!$B40),IF($E$5=rg,'Engine Emission Factors'!$E40,IF($E$5=tng,'Engine Emission Factors'!$D40,IF($E$5=ngr,'Engine Emission Factors'!$F40,IF($E$5=ngl,'Engine Emission Factors'!$G40,IF($E$5=ng2l,'Engine Emission Factors'!$H40,IF($E$5=select,'Engine Emission Factors'!$I40))))))) -> 0 | H57: 0 | I57: 0
B58: Xylene | G58: =IF($E$5=rd,IF($E$7>=600,'Engine Emission Factors'!$C41,'Engine Emission Factors'!$B41),IF($E$5=rg,'Engine Emission Factors'!$E41,IF($E$5=tng,'Engine Emission Factors'!$D41,IF($E$5=ngr,'Engine Emission Factors'!$F41,IF($E$5=ngl,'Engine Emission Factors'!$G41,IF($E$5=ng2l,'Engine Emission Factors'!$H41,IF($E$5=select,'Engine Emission Factors'!$I41))))))) -> 0 | H58: 0 | I58: 0
F59: HAP total | H59: =SUM(H34:H58) -> 0 | I59: =SUM(I34:I58) -> 0
B60: 1 Global Warming Potential from 40 CFR Part 98, Subpart A, Table A-1 | F60: 4 See information on insignficnat activities at Minn. R. 7007.1300 and on the 'Permits & Requirements' tab.
B61: 2 CO2e = carbon dioxide equivalents
B62: 3 Routine = 24 hr/day * 365 day/yr or 8760 hr/yr; Emergency = 500 hr/yr | F62: Minn. R. 7007.1300

Sheet Fugitive
B1: =Instructions!G2 -> p-sbap5-30 • 4/22/19
B2: Air emissions from fugitive sources
B3: Fugitive emissions1
B4: Potential emissions
B5: Your potential emissions from fugitive sources must be used in identifying whether a permit is required. Fugitive sources include unpaved roads, material handling at stockpiles, and wind erosion of ground piles.
C8: Throughput (maximum capacity) | E8: <-------- The maximum throughput used on the aggregate tab for potential emissions is automatically entered here.
C9: =SUM(Aggregate!E28:E34) -> 0 | D9: tons/year
B11: Actual emissions
B12: Are you applying for or have an Option D registration permit?
B13: If… | C13: Then…
B14: Yes | C14: You are required… | E14: …to calculate actual emissions from fugitive sources (unpaved roads, material handling for stockpiles, and wind erosion of ground piles). Enter actual throughput for each activity below.
B16: No | C16: You are not required…
C19: Throughput (actual amount) | E19: <-------- The actual amount of aggregate processed which, you entered into the aggregate tab, is used here.
C20: =SUM(Aggregate!D46:D52) -> 0 | D20: tons/year
B22: Unpaved road2
B23: Enter the data for your trucks below to calculate unpaved road emissions.
D24: Vehicle 1 | E24: Vehicle 2
B25: % of total trips made by vehicle | D25: 0 | E25: 0 | F25: W = mean vehicle weight (ton) | I25: =D25*((D26+D27)/2)+E25*((E26+E27)/2) -> 0
B26: Empty weight of vehicle (tons) | D26: 0 | E26: 0 | F26: Vpotential = # vehicle trips / yr | I26: =IFERROR(IF(($C$9/((Fugitive!D25*(Fugitive!D27-Fugitive!D26))+(Fugitive!E25*(Fugitive!E27-Fugitive!E26))))=0,0,IF(($C$9/((Fugitive!D25*(Fugitive!D27-Fugitive!D26))+(Fugitive!E25*(Fugitive!E27-Fugitive!E26))))>0,($C$9/((Fugitive!D25*(Fugitive!D27-Fugitive!D26))+(Fugitive!E25*(Fugitive!E27-Fugitive!E26)))))),0) -> 0
B27: Full weight of loaded vehicle (tons) | D27: 0 | E27: 0 | F27: Vactual = # vehicle trips / yr | I27: =IFERROR(IF(((C20)/((Fugitive!D25*(Fugitive!D27-Fugitive!D26))+(Fugitive!E25*(Fugitive!E27-Fugitive!E26))))=0,0,IF((C20)/((Fugitive!D25*(Fugitive!D27-Fugitive!D26))+(Fugitive!E25*(Fugitive!E27-Fugitive!E26)))>0,((C20)/((Fugitive!D25*(Fugitive!D27-Fugitive!D26))+(Fugitive!E25*(Fugitive!E27-Fugitive!E26)))))),0) -> 0
B28: S = speed on unpaved road, mph | D28: 0
B29: m = miles of unpaved road per trip | D29: 0 | E29: Potential Vehicle Miles Traveled (VMT)/yr = Vpotential x miles | I29: =IF((I26*D29)>0,(I26*D29),0) -> 0
B30: M = surface moisture content (%) | D30: 1.5 | E30: Actual Vehicle Miles Traveled (VMT)/yr = Vactual x miles | I30: =IF((I27*D29)>0,(I27*D29),0) -> 0
B31: s = silt content of road (%) | D31: 6
B32: p = # of days w/ >=0.01" precip/yr | D32: =(133+121+115+109+108)/5 -> 117.2 | E32: 4 | F32: Unpaved road emission factor equation3
B33: k = PM particle size multiplier | D33: 6 | E33: PM emission factor (lb/VMT) | I33: =((D33*((D31/12)^1)*((D28/30)^0.3)/((D30/0.5)^0.3))-0.00047)*((365-D32)/365) -> -0.0003190849315
B34: k10 = PM10 particle size multiplier | D34: 1.8 | E34: PM10 emission factor (lb/VMT) | I34: =((D34*((D31/12)^1)*((D28/30)^0.5)/((D30/0.5)^0.2))-0.00047)*((365-D32)/365) -> -0.0003190849315
B35: k2.5 = PM2.5 particle size multiplier | D35: 0.18 | G35: PM2.5 emission factor (lb/VMT) | I35: =((D35*((D31/12)^1)*((D28/30)^0.5)/((D30/0.5)^0.2))-0.00036)*((365-D32)/365) -> -0.0002444054795
B37: Material handling at stockpiles5
B38: k = PM particle size multiplier | D38: 0.74
B39: k10 = PM10 particle size multiplier | D39: 0.35 | E39: Material handling emission factor equation6
B40: k2.5 = PM2.5 particle size multiplier | D40: 0.053 | E40: PM emission factor (lb/ton) | I40: =D38*0.0032*(((D41/5)^1.3)/((D42/2)^1.4)) -> 0.008722378401
B41: U = mean wind speed (mph) | D41: 10 | E41: PM10 emission factor (lb/ton) | I41: =D39*0.0032*(((D41/5)^1.3)/((D42/2)^1.4)) -> 0.004125449244
B42: M = material moisture content (%) | D42: 1.5 | E42: PM2.5 emission factor (lb/ton) | I42: =D40*0.0032*(((D41/5)^1.3)/((D42/2)^1.4)) -> 0.0006247108855
B44: Wind erosion of ground pile7
B45: d = # days pile is present per year | D45: 0
B46: a = acres of pile base | D46: 0 | E46: Wind erosion emission factor reference8
B47: s = silt content of material (%) | D47: 7.1 | E47: PM emission factor (lb/day*acre) | I47: =1.7*(D47/1.5)*((365-D48)/235)*(D49/15) -> 16.96990638
B48: p = # of days w/ >=0.01" precip/yr | D48: =(133+121+115+109+108)/5 -> 117.2 | E48: 4 | F48: PM10 emission factor = PM * 36% | I48: =I47*0.36 -> 6.109166298
B49: f = % wind > 12 mph at pile height | D49: 30 | E49: PM2.5 emission factor = PM * 9.5% | I49: =I47*0.095 -> 1.612141106
B51: Potential fugitive emissions
B52: Potential activity | C52: Unpaved road | E52: Material handling at stockpiles | G52: Wind erosion of ground pile | I52: Total potential emissions (ton/year)
C53: (VMT/yr) | E53: (ton/yr) | G53: (365d*a/yr)
C54: =I29 -> 0 | E54: =C9 -> 0 | G54: =D46*365 -> 0
C55: Emission factor | D55: Potential | E55: Emission factor | F55: Potential | G55: Emission factor | H55: Potential
C56: (lb/VMT) | D56: (ton/yr) | E56: (lb/ton) | F56: (ton/yr) | G56: (lb/d*acre) | H56: (ton/yr)
B57: PM | C57: =I33 -> -0.0003190849315 | D57: =C54*C57/2000 -> 0 | E57: =I40 -> 0.008722378401 | F57: =E54*E57/2000 -> 0 | G57: =I47 -> 16.96990638 | H57: =G57*$G$54/2000 -> 0 | I57: =(D57+F57+H57) -> 0
B58: PM10 | C58: =I34 -> -0.0003190849315 | D58: =C54*C58/2000 -> 0 | E58: =I41 -> 0.004125449244 | F58: =E54*E58/2000 -> 0 | G58: =I48 -> 6.109166298 | H58: =G58*$G$54/2000 -> 0 | I58: =(D58+F58+H58) -> 0
B59: PM2.5 | C59: =I35 -> -0.0002444054795 | D59: =C54*C59/2000 -> 0 | E59: =I42 -> 0.0006247108855 | F59: =E54*E59/2000 -> 0 | G59: =I49 -> 1.612141106 | H59: 0 | I59: 0
B61: Actual fugitive emissions
B62: Actual activity | C62: Unpaved road | E62: Material handling at stockpiles | G62: Wind erosion of ground pile | I62: Total actual emissions (ton/year)
C63: (VMT/yr) | E63: (ton/yr) | G63: (d*a/yr)
C64: =I30 -> 0 | E64: =C20 -> 0 | G64: =D45*D46 -> 0
C65: Emission factor | D65: Potential | E65: Emission factor | F65: Potential | G65: Emission factor | H65: Potential
C66: (lb/VMT) | D66: (ton/yr) | E66: (lb/ton) | F66: (ton/yr) | G66: (lb/d*acre) | H66: (ton/yr)
B67: PM | C67: =I33 -> -0.0003190849315 | D67: =C64*C67/2000 -> 0 | E67: =E57 -> 0.008722378401 | F67: =E64*E67/2000 -> 0 | G67: =I47 -> 16.96990638 | H67: =$G$64*G67/2000 -> 0 | I67: =D67+F67+H67 -> 0
B68: PM10 | C68: =I34 -> -0.0003190849315 | D68: =C64*C68/2000 -> 0 | E68: =E58 -> 0.004125449244 | F68: =E64*E68/2000 -> 0 | G68: =I48 -> 6.109166298 | H68: =$G$64*G68/2000 -> 0 | I68: =D68+F68+H68 -> 0
B69: PM2.5 | C69: =I35 -> -0.0002444054795 | D69: =C64*C69/2000 -> 0 | E69: =E59 -> 0.0006247108855 | F69: =E64*E69/2000 -> 0 | G69: =I49 -> 1.612141106 | H69: 0 | I69: 0
B71: 1 Sources: | C71: Minn. Rule 7007.0200 Subpart 2. B. | E71: Minn. Rule 7007.1130 Subpart 4. | G71: Minn. Rule 7007.1300 Subpart 3. J.
B72: 2 Unpaved road emissions reference sources: | E72: Source: AP-42 13.2.2 (11/2006)
B73: 3 Unpaved road particulate matter emission factor equation (lb/VMT) | F73: PM = {{[k[(s/12)^1][(S/30)^0.3)]/[(M/0.5)^0.3]}-0.00047}*(365-p/365)
B74: PM-10 = {{[k[(s/12)^1][(S/30)^0.5)]/[(M/0.5)^0.2]}-0.00047}*(365-p/365) | F74: PM-10 = {{[k[(s/12)^1][(S/30)^0.5)]/[(M/0.5)^0.2]}-0.00036}*(365-p/365)
B75: 4 Average across MN precipitation data in Comparative Climatic Data (CCD-2015) tables, page 42.
B76: 5 Stockpile reference | D76: Source: AP-42 13.2.4 (11/2006)
B77: 6 Stockpile emission factor equation (lb/ton) = k(0.0032)((U/5)1.3/(M/2)1.4)
B78: 7 Wind erosion reference | D78: EPA Air/Superfund National Technical Guidance Study Series, Vol. III, Table 21-23
B79: 8 Wind erosion emission factor equation (lb/day/acre)=1.7(s/1.5)((365-p)/235)(f/15)

Sheet Potential emissions
B1: =Instructions!G2 -> p-sbap5-30 • 4/22/19
B2: Potential emissions - Aggregate: sand & gravel
B3: =IF('Data validation'!A22="yes","The flag next to a potential emission total means your potential emissions exceed the permitting threshold and a permit is required.","These pollutant totals represent the information you entered into this calculator.") -> These pollutant totals represent the information you entered into this calculator.
B4: Pollutant | C4: Aggregate | D4: Crusher Engine | E4: Generator | F4: Fugitives | G4: Potential Emissions | H4: Permitting Threshold
C6: (ton/yr) | D6: (ton/yr) | E6: (ton/yr) | F6: (ton/yr) | G6: (ton/yr) | H6: (ton/yr)
B7: Criteria Air Pollutants | D7: =IF('Crusher engine'!J20=7,"Insignificant Activity"," ") ->  | E7: =IF(Generator!J20=7,"Insignificant Activity"," ") -> 
B8: PM | C8: =Aggregate!G35 -> 0 | D8: ='Crusher engine'!H20 -> 0 | E8: =Generator!H20 -> 0 | F8: =Fugitive!I57 -> 0 | G8: =SUM(C8:F8) -> 0 | H8: 100
B9: PM10 | C9: =Aggregate!I35 -> 0 | D9: ='Crusher engine'!H21 -> 0 | E9: =Generator!H21 -> 0 | F9: =Fugitive!I58 -> 0 | G9: 0 | H9: 25
B10: PM2.5 | C10: =Aggregate!K35 -> 0 | D10: ='Crusher engine'!H22 -> 0 | E10: =Generator!H22 -> 0 | F10: =Fugitive!I59 -> 0 | G10: 0 | H10: 100
B11: SOx | D11: ='Crusher engine'!H23 -> 0 | E11: =Generator!H23 -> 0 | G11: 0 | H11: 50
B12: NOx | D12: ='Crusher engine'!H24 -> 0 | E12: =Generator!H24 -> 0 | G12: 0 | H12: 100
B13: VOC | D13: ='Crusher engine'!H25 -> 0 | E13: =Generator!H25 -> 0 | G13: 0 | H13: 100
B14: CO | D14: ='Crusher engine'!H26 -> 0 | E14: =Generator!H26 -> 0 | G14: 0 | H14: 100
B15: Lead | D15: ='Crusher engine'!H27 -> 0 | E15: =Generator!H27 -> 0 | G15: 0 | H15: 0.5
B16: Greenhouse Gas Emissions
B17: CO2 | D17: ='Crusher engine'!H29 -> 0 | E17: =Generator!H29 -> 0 | G17: =SUM(C17:F17) -> 0
B18: CH4 | D18: ='Crusher engine'!H30 -> 0 | E18: =Generator!H30 -> 0 | G18: =SUM(C18:F18) -> 0
B19: N2O | D19: ='Crusher engine'!H31 -> 0 | E19: =Generator!H31 -> 0 | G19: =SUM(C19:F19) -> 0
B20: GHG Total CO2e | G20: =(G17*1)+(G18*25)+(G19*298) -> 0 | H20: 100000
B21: Hazardous Air Pollutants
B22: 1,1,2,2-tetrachloroethane | D22: ='Crusher engine'!H34 -> 0 | E22: =Generator!H34 -> 0 | G22: =SUM(C22:F22) -> 0
B23: 1,1,2-trichloroethane | D23: ='Crusher engine'!H35 -> 0 | E23: =Generator!H35 -> 0 | G23: 0
B24: 1,3-butadiene | D24: ='Crusher engine'!H36 -> 0 | E24: =Generator!H36 -> 0 | G24: 0
B25: 1,3-dichloropropene | D25: ='Crusher engine'!H37 -> 0 | E25: =Generator!H37 -> 0 | G25: 0
B26: Acetaldehyde | D26: ='Crusher engine'!H38 -> 0 | E26: =Generator!H38 -> 0 | G26: 0
B27: Acrolein | D27: ='Crusher engine'!H39 -> 0 | E27: =Generator!H39 -> 0 | G27: 0
B28: Benzene | D28: ='Crusher engine'!H40 -> 0 | E28: =Generator!H40 -> 0 | G28: 0
B29: Biphenyl | D29: ='Crusher engine'!H41 -> 0 | E29: =Generator!H41 -> 0 | G29: 0
B30: Carbon tetrachloride | D30: ='Crusher engine'!H42 -> 0 | E30: =Generator!H42 -> 0 | G30: 0
B31: Chlorobenzene | D31: ='Crusher engine'!H43 -> 0 | E31: =Generator!H43 -> 0 | G31: 0
B32: Chloroform | D32: ='Crusher engine'!H44 -> 0 | E32: =Generator!H44 -> 0 | G32: 0
B33: Ethylbenzene | D33: ='Crusher engine'!H45 -> 0 | E33: =Generator!H45 -> 0 | G33: 0
B34: Ethylene dibromide | D34: ='Crusher engine'!H46 -> 0 | E34: =Generator!H46 -> 0 | G34: 0
B35: Formaldehyde | D35: ='Crusher engine'!H47 -> 0 | E35: =Generator!H47 -> 0 | G35: 0
B36: Hexane | D36: ='Crusher engine'!H48 -> 0 | E36: =Generator!H48 -> 0 | G36: =SUM(C36:F36) -> 0
B37: Methanol | D37: ='Crusher engine'!H49 -> 0 | E37: =Generator!H49 -> 0 | G37: 0
B38: Methylene chloride | D38: ='Crusher engine'!H50 -> 0 | E38: =Generator!H50 -> 0 | G38: 0
B39: Naphthalene | D39: ='Crusher engine'!H51 -> 0 | E39: =Generator!H51 -> 0 | G39: 0
B40: PAH | D40: ='Crusher engine'!H52 -> 0 | E40: =Generator!H52 -> 0 | G40: 0
B41: Phenol | D41: ='Crusher engine'!H53 -> 0 | E41: =Generator!H53 -> 0 | G41: 0
B42: Styrene | D42: ='Crusher engine'!H54 -> 0 | E42: =Generator!H54 -> 0 | G42: 0
B43: Tetrachloroethane | D43: ='Crusher engine'!H55 -> 0 | E43: =Generator!H55 -> 0 | G43: 0
B44: Toluene | D44: ='Crusher engine'!H56 -> 0 | E44: =Generator!H56 -> 0 | G44: 0
B45: Vinyl chloride | D45: ='Crusher engine'!H57 -> 0 | E45: =Generator!H57 -> 0 | G45: 0
B46: Xylene | D46: ='Crusher engine'!H58 -> 0 | E46: =Generator!H58 -> 0 | G46: 0
B47: HAP Indiv. Max | C47: =IF(G47=G22,B22,IF(G47=G23,B23,IF(G47=G24,B24,IF(G47=G25,B25,IF(G47=G26,B26,IF(G47=G27,B27,IF(G47=G28,B28,IF(G47=G29,B29,IF(G47=G30,B30,IF(G47=G31,B31,IF(G47=G32,B32,IF(G47=G33,B33,IF(G47=G34,B34,IF(G47=G35,B35,IF(G47=G36,B36,IF(G47=G37,B37,IF(G47=G38,B38,IF(G47=G39,B39,IF(G47=G40,B40,IF(G47=G41,B41,IF(G47=G42,B42,IF(G47=G43,B43,IF(G47=G44,B44,IF(G47=G45,B45,IF(G47=G46,B46))))))))))))))))))))))))) -> 1,1,2,2-tetrachloroethane | G47: =MAX(G22:G46) -> 0 | H47: 10
B48: HAP total | G48: =SUM(G22:G46) -> 0 | H48: 25

Sheet Actual emissions
B1: =Instructions!G2 -> p-sbap5-30 • 4/22/19
B2: Actual emissions - Aggregate: sand & gravel
B3: =IF('Data validation'!A25="yes","The flag next to your actual emissions total indicates that your business exceeds the Option D limit and an individual permit is required.","These pollutant totals represent the information you entered into this calculator.") -> These pollutant totals represent the information you entered into this calculator.
B4: Pollutant | C4: Aggregate | D4: Crusher Engine | E4: Generator | F4: Fugitives | G4: Potential Emissions | H4: Permitting Threshold
C6: (ton/yr) | D6: (ton/yr) | E6: (ton/yr) | F6: (ton/yr) | G6: (ton/yr) | H6: (ton/yr)
B7: Criteria Air Pollutants
B8: PM | C8: =Aggregate!F53 -> 0 | D8: ='Crusher engine'!I20 -> 0 | E8: =Generator!I20 -> 0 | F8: =Fugitive!I67 -> 0 | G8: =SUM(C8:F8) -> 0 | H8: 50
B9: PM10 | C9: =Aggregate!H53 -> 0 | D9: ='Crusher engine'!I21 -> 0 | E9: =Generator!I21 -> 0 | F9: =Fugitive!I68 -> 0 | G9: 0 | H9: 50
B10: PM2.5 | C10: =Aggregate!J53 -> 0 | D10: ='Crusher engine'!I22 -> 0 | E10: =Generator!I22 -> 0 | F10: =Fugitive!I69 -> 0 | G10: 0 | H10: 50
B11: SOx | D11: ='Crusher engine'!I23 -> 0 | E11: =Generator!I23 -> 0 | G11: 0 | H11: 50
B12: NOx | D12: ='Crusher engine'!I24 -> 0 | E12: =Generator!I24 -> 0 | G12: 0 | H12: 50
B13: VOC | D13: ='Crusher engine'!I25 -> 0 | E13: =Generator!I25 -> 0 | G13: 0 | H13: 50
B14: CO | D14: ='Crusher engine'!I26 -> 0 | E14: =Generator!I26 -> 0 | G14: 0 | H14: 50
B15: Lead | D15: ='Crusher engine'!I27 -> 0 | E15: =Generator!I27 -> 0 | G15: 0 | H15: 0.5
B16: Greenhouse Gas Emissions
B17: CO2 | D17: ='Crusher engine'!I29 -> 0 | E17: =Generator!I29 -> 0 | G17: =SUM(C17:F17) -> 0
B18: CH4 | D18: ='Crusher engine'!I30 -> 0 | E18: =Generator!I30 -> 0 | G18: =SUM(C18:F18) -> 0
B19: N2O | D19: ='Crusher engine'!I31 -> 0 | E19: =Generator!I31 -> 0 | G19: =SUM(C19:F19) -> 0
B20: GHG Total CO2e | G20: =(G17*1)+(G18*25)+(G19*298) -> 0 | H20: 50000
B21: Hazardous Air Pollutants
B22: 1,1,2,2-tetrachloroethane | D22: ='Crusher engine'!I34 -> 0 | E22: =Generator!I34 -> 0 | G22: =SUM(C22:F22) -> 0
B23: 1,1,2-trichloroethane | D23: ='Crusher engine'!I35 -> 0 | E23: =Generator!I35 -> 0 | G23: 0
B24: 1,3-butadiene | D24: ='Crusher engine'!I36 -> 0 | E24: =Generator!I36 -> 0 | G24: 0
B25: 1,3-dichloropropene | D25: ='Crusher engine'!I37 -> 0 | E25: =Generator!I37 -> 0 | G25: 0
B26: Acetaldehyde | D26: ='Crusher engine'!I38 -> 0 | E26: =Generator!I38 -> 0 | G26: 0
B27: Acrolein | D27: ='Crusher engine'!I39 -> 0 | E27: =Generator!I39 -> 0 | G27: 0
B28: Benzene | D28: ='Crusher engine'!I40 -> 0 | E28: =Generator!I40 -> 0 | G28: 0
B29: Biphenyl | D29: ='Crusher engine'!I41 -> 0 | E29: =Generator!I41 -> 0 | G29: 0
B30: Carbon tetrachloride | D30: ='Crusher engine'!I42 -> 0 | E30: =Generator!I42 -> 0 | G30: 0
B31: Chlorobenzene | D31: ='Crusher engine'!I43 -> 0 | E31: =Generator!I43 -> 0 | G31: 0
B32: Chloroform | D32: ='Crusher engine'!I44 -> 0 | E32: =Generator!I44 -> 0 | G32: 0
B33: Ethylbenzene | D33: ='Crusher engine'!I45 -> 0 | E33: =Generator!I45 -> 0 | G33: 0
B34: Ethylene dibromide | D34: ='Crusher engine'!I46 -> 0 | E34: =Generator!I46 -> 0 | G34: 0
B35: Formaldehyde | D35: ='Crusher engine'!I47 -> 0 | E35: =Generator!I47 -> 0 | G35: 0
B36: Hexane | D36: ='Crusher engine'!I48 -> 0 | E36: =Generator!I48 -> 0 | G36: 0
B37: Methanol | D37: ='Crusher engine'!I49 -> 0 | E37: =Generator!I49 -> 0 | G37: 0
B38: Methylene chloride | D38: ='Crusher engine'!I50 -> 0 | E38: =Generator!I50 -> 0 | G38: 0
B39: Naphthalene | D39: ='Crusher engine'!I51 -> 0 | E39: =Generator!I51 -> 0 | G39: 0
B40: PAH | D40: ='Crusher engine'!I52 -> 0 | E40: =Generator!I52 -> 0 | G40: 0
B41: Phenol | D41: ='Crusher engine'!I53 -> 0 | E41: =Generator!I53 -> 0 | G41: 0
B42: Styrene | D42: ='Crusher engine'!I54 -> 0 | E42: =Generator!I54 -> 0 | G42: 0
B43: Tetrachloroethane | D43: ='Crusher engine'!I55 -> 0 | E43: =Generator!I55 -> 0 | G43: 0
B44: Toluene | D44: ='Crusher engine'!I56 -> 0 | E44: =Generator!I56 -> 0 | G44: 0
B45: Vinyl chloride | D45: ='Crusher engine'!I57 -> 0 | E45: =Generator!I57 -> 0 | G45: 0
B46: Xylene | D46: ='Crusher engine'!I58 -> 0 | E46: =Generator!I58 -> 0 | G46: 0
B47: HAP Indiv. Max | C47: =IF(G47=G22,B22,IF(G47=G23,B23,IF(G47=G24,B24,IF(G47=G25,B25,IF(G47=G26,B26,IF(G47=G27,B27,IF(G47=G28,B28,IF(G47=G29,B29,IF(G47=G30,B30,IF(G47=G31,B31,IF(G47=G32,B32,IF(G47=G33,B33,IF(G47=G34,B34,IF(G47=G35,B35,IF(G47=G36,B36,IF(G47=G37,B37,IF(G47=G38,B38,IF(G47=G39,B39,IF(G47=G40,B40,IF(G47=G41,B41,IF(G47=G42,B42,IF(G47=G43,B43,IF(G47=G44,B44,IF(G47=G45,B45,IF(G47=G46,B46))))))))))))))))))))))))) -> 1,1,2,2-tetrachloroethane | G47: =MAX(G22:G46) -> 0 | H47: 5
B48: HAP total | G48: =SUM(G22:G46) -> 0 | H48: 12.5

Sheet Permits & requirements
B1: =Instructions!G2 -> p-sbap5-30 • 4/22/19
B2: Permits & requirements
B3: The need for a permit is based on your entire business' potential air emissions. All activities that put pollutants into the air (such as paint and solvent use that are not associated with maintenance) need to be assessed if they are not included in this calculator. Once you identify if you need a permit, based on whether an NSPS applies and potential emissions, you can then use your actual emissions to see which permit is the best fit for your business.
B6: Content below is based on the information entered into this calculator and is not an official MPCA permit determination.
B9: Is a permit required? | F9: What type of permit? Assumes all air pollutant activities are entered into this calculator. If you have additional air emission sources, the recommendation below cannot be used. You must assess your facility's total potential emissions from all sources to identify your permitting needs.
B10: The summary below is based on information you entered in the blue tabs.
B11: Your business's potential emissions | C11: Your business's actual emissions | D11: A federal NSPS | E11: A federal NESHAP
B13: =IF('Data validation'!A22="yes","do","do not") -> do not | C13: =IF('Data validation'!A25="yes","do","do not") -> do not | D13: =IF('Data validation'!A17>0,"Return to Federal tab and answer all Y/N questions",IF(AND('Data validation'!A17=0,'Data validation'!A12>0),"does","does not")) -> Return to Federal tab and answer all Y/N questions | E13: =IF('Federal standards'!N61="Choose Y/N","Return to Federal tab and answer all Y/N questions",IF('Federal standards'!N61="Yes","does",IF('Federal standards'!N61="No","does not"))) -> Return to Federal tab and answer all Y/N questions
B16: exceed permit thresholds | C16: exceed Option D limits | D16: apply to your business | E16: apply to your business
B18: Potential emissions exceed permit thresholds | C18: Actual emissions exceed Option D limits | D18: Federal NSPS applies?1 | E18: Federal NESHAP applies? | F18: Which permit do you need if your business does not qualify for the general permit? | H18: More Information | I18: Forms
B21: no | C21: n/a | D21: no | E21: Applicability of a NESHAP does not determine if a permit is required. | F21: Below permit thresholds | H21: n/a | I21: n/a
D22: yes | F22: Registration Option A | H22: Info about Air Registration Permits | I22: Application Forms, scroll to Section 3
B23: yes | C23: no | D23: no | F23: Registration Option D
D24: yes
B25: yes | C25: yes | D25: no | F25: Other state or federal permit | H25: Info about Air Permits | I25: Application Forms, scroll to Section 1
D26: yes
B27: 1 Applicability of NSPS IIII or JJJJ does not indicate a need for a permit if your engine did not rely on performance testing to demonstrate NSPS compliance and any compression ignition engines are less than 30 liters per cylinder. Applicability of NSPS Kb does not indicate a need for a permit if construction, reconstruction or modification commenced after July 23, 1984, if all storage vessels subject to Kb at the facility each have a capacity of 40 cubic meters to less than 75 cubic meters. | I27: Minn. R. 7007.0300
B32: Does your business qualify for the nonmetallic mineral general permit?
B33: If your business meets the qualifications for the general permit, you cannot obtain a registration permit. Use the checklist (NM-00), linked below, to see if your business qualifies for the general permit.
B35: NM-00: Qualifications Review Checklist – Nonmetallic Mineral Processing General Permit (aq-f4-nm00)
C36: See the application forms on the air permit and forms page – scroll down the webpage to #4. | E36: Be sure to complete and include Form SCP-01 with your application.
C39: Info about Individual Air Permits | E39: SCP-01: Submittal cover page (aq-f1-scp01)
B41: Types of insignificant activities | D41: Minn. R. 7007.1300
B42: subp. 2 | C42: Not required to be listed.
B43: supb. 3 | C43: Required to be listed but emissions do not need to be included in total facility emission calculations, unless requested by MPCA.
B44: subp. 4 | C44: Required to be listed if applying for a Part 70 (Federal permit or federally enforceable permit limits) but emissions do not need to be included in total facility emission calculations, unless requested by MPCA.
B46: If emissions units listed in 7007.1300 are subject to additional requirements under section 114(a)(3) of the act (Monitoring Requirements) or section 112 of the act (Hazardous Air Pollutants), or if part of a title I modification, or, if accounted for, make a stationary source subject to a part 70 permit, emissions from the emissions units must be calculated in the permit application.
B49: If all emission points are insignificant and total emissions do not exceed permitting thresholds, a permit is not required. Comply with any applicable regulations.
B51: Crusher engine and generator
B52: A stack height determination is required if:
B53: 1) Installing a non-emergency engine, including insignificant activities, OR
B54: 2) There are existing non-emergency engines installed after January 1, 2000, OR
B55: 3) Installing any permit-required engine, including emergency engines.
B57: Use the SCREEN3 program to enter engine and site-specific information to identify the necessary stack height for the engine.
B58: https://www.epa.gov/scram/air-quality-dispersion-modeling-screening-models#screen3
B59: See input requirements and instructions on modeling more than one engine on the MPCA Form EC-03.
B60: https://www.pca.state.mn.us/sites/default/files/aq-f1-ec03.doc
B62: MPCA Air permits page for engines | D62: https://www.pca.state.mn.us/air/engines

Sheet Aggregate emission factors
B1: =Instructions!G2 -> p-sbap5-30 • 4/22/19
B2: Emission factors for aggregate processing1
B4: Emission factors and calculated percent controls
B5: Activity | D5: Uncontrolled or Controlled Emission Factor | E5: PM Emission Factor | F5: PM Emission Control (calculated) | G5: PM10 Emission Factor | H5: PM10 Emission Control (calculated) | I5: PM2.5 Emission Factor | J5: PM2.5 Emission Control
E9: (lb/ton) | F9: (%) | G9: (lb/ton) | H9: (%) | I9: (lb/ton) | J9: (%)
B10: Crushing | C10: Primary1 | D10: Uncontrolled | E10: 0.0007 | G10: =E10 -> 0.0007 | I10: ND
D11: Controlled | E11: ND | G11: ND | I11: ND
C12: Secondary2 | D12: Uncontrolled | E12: 0.025 | G12: 0.0087 | I12: ND
D13: Controlled | E13: ND | G13: ND | I13: 5e-05
C14: Tertiary | D14: Uncontrolled | E14: 0.0054 | F14: =(E14-E15)/E14 -> 0.7777777778 | G14: 0.0024 | H14: =(G14-G15)/G14 -> 0.775 | I14: ND
D15: Controlled | E15: 0.0012 | G15: 0.00054 | I15: 0.0001
C16: Fines | D16: Uncontrolled | E16: 0.039 | F16: =(E16-E17)/E16 -> 0.9230769231 | G16: 0.015 | H16: =(G16-G17)/G16 -> 0.92 | I16: ND
D17: Controlled | E17: 0.003 | G17: 0.0012 | I17: 7e-05
B18: Screening | C18: Screening | D18: Uncontrolled | E18: 0.025 | F18: =(E18-E19)/E18 -> 0.912 | G18: 0.0087 | H18: =(G18-G19)/G18 -> 0.9149425287 | I18: ND
D19: Controlled | E19: 0.0022 | G19: 0.00074 | I19: 5e-05
C20: Fines | D20: Uncontrolled | E20: 0.3 | F20: =(E20-E21)/E20 -> 0.988 | G20: 0.072 | H20: =(G20-G21)/G20 -> 0.9694444444 | I20: ND
D21: Controlled | E21: 0.0036 | G21: 0.0022 | I21: ND
B22: Conveyor Transfer Points | D22: Uncontrolled | E22: 0.003 | F22: =(E22-E23)/E22 -> 0.9533333333 | G22: 0.0011 | H22: =(G22-G23)/G22 -> 0.9581818182 | I22: ND
D23: Controlled | E23: 0.00014 | G23: 4.6e-05 | I23: 1.3e-05
B24: 1Emission factors from AP-42, Chapter 11.19-2, unless otherwise stated. | G24: https://www3.epa.gov/ttn/chief/ap42/ch11/final/c11s1902.pdf
B25: 2WebFIRE SCC 3-05-020-01: EPA. 1995. Section 11.19.2, Construction Aggregate Processing: Crushed Stone Processing. In: Compilation of Air Pollutant Emission Factors, Volume 1: Stationary Point and Area Sources, Fifth Edition, AP-42. U.S. Environmental Protection Agency, Office of Air Quality Planning and Standards. Research Triangle Park, North Carolina. (Assume PM = PM-10)
B28: 3WebFIRE SCC 3-05-020-02: EPA. August, 2004. Section 11.19.2, Crushed Stone Processing and Pulverized Mineral Processing. In: Compilation of Air Pollutant Emission Factors, Volume 1: Stationary Point and Area Sources, Fifth Edition, AP-42. U.S. Environmental Protection Agency, Office of Air Quality Planning and Standards. Research Triangle Park, North Carolina.
B33: Uncontrolled PM-2.5 factors
B34: Activity | D34: PM2.5 Emission Factor | F34: Reference
D35: (reason) | E35: (lb/ton)
B36: Crushing | C36: Primary | D36: 1 | E36: =E38 -> 0.0005 | F36: 1 | G36: Emissions factor assumed, worst-case, to equal PM-2.5 of secondary crusher.
C37: Secondary | D37: 2 | E37: =I13*5 -> 0.00025
C38: Tertiary | D38: 2 | E38: =I15*5 -> 0.0005 | F38: 2 | G38: Back calculated from controlled emission factor using a conservative minimum percent emission control of 80%.
C39: Fines | D39: 2 | E39: =I17*5 -> 0.00035
B40: Screening | C40: Screening | D40: 2 | E40: =I19*5 -> 0.00025 | F40: 3 | G40: Emission factor assumed, worst-case, to be 10 times greater than uncontrolled screening PM-2.5 emission factor.
C41: Fines | D41: 3 | E41: =E40*10 -> 0.0025
B42: Conveyor Transfer Points | D42: 2 | E42: =I23*5 -> 6.5e-05

Sheet Engine Emission Factors
A1: =Instructions!G2 -> p-sbap5-30 • 4/22/19
A2: Engine emission factors
B3: RECIPROCATING ENGINES (<600HP) DIESEL (lb/MMBtu) | C3: RECIPROCATING ENGINES (>=600HP) DIESEL (lb/MMBtu)1 | D3: TURBINE ENGINES (electrical generation) NATURAL GAS (lb/MMBtu)1 | E3: RECIPROCATING GASOLINE (lb/MMBtu)2 | F3: RECIPROCATING Natural Gas 4-Stroke Rich-Burn (lb/MMBtu) | G3: RECIPROCATING Natural Gas 4-Stroke Lean-Burn (lb/MMBtu) | H3: RECIPROCATING Natural Gas 2-Stroke Lean-Burn (lb/MMBtu)
A4: source | B4: AP42 Chpt 3.3 (10/96) | C4: AP42 Chpt 3.4 (10/96) | D4: AP42 Chpt 3.1 (4/00) | E4: AP42 Chpt 3.3 (10/96) | F4: AP42 Chpt 3.2-3 (7/00) | G4: AP42 Chpt 3.2-2 (7/00) | H4: AP42 Chpt 3.2-2 (7/00)
A5: PM | B5: 0.31 | C5: 0.1 | D5: 0.0066 | E5: 0.1 | F5: =0.0095+0.00991 -> 0.01941 | G5: =0.0000771+0.00991 -> 0.0099871 | H5: =0.0384+0.00991 -> 0.04831
A6: PM10 | B6: 0.31 | C6: =0.0496+0.0077 -> 0.0573 | D6: =0.0019+0.0047 -> 0.0066 | E6: 0.1 | F6: =0.0095+0.00991 -> 0.01941 | G6: =G5 -> 0.0099871 | H6: =H5 -> 0.04831
A7: PM2.5 | B7: 0.31 | C7: =0.0479+0.0077 -> 0.0556 | D7: =D6 -> 0.0066 | E7: 0.1 | F7: =F6 -> 0.01941 | G7: =G5 -> 0.0099871 | H7: =H6 -> 0.04831
A8: SOx | B8: 0.29 | C8: 1.01 | D8: 0.94 | E8: 0.084 | F8: 0.000588 | G8: 0.000588 | H8: 0.000588
A9: NOx | B9: 4.41 | C9: 3.2 | D9: 0.32 | E9: 1.63 | F9: 2.21 | G9: 4.08 | H9: 3.17
A10: VOC | B10: =0.35+0+0.01+0 -> 0.36 | C10: 0.09 | D10: 0.0021 | E10: =2.1+0.09+0.69+0.15 -> 3.03 | F10: 0.0296 | G10: 0.118 | H10: 0.12
A11: CO | B11: 0.95 | C11: 0.85 | D11: 0.082 | E11: 0.99 | F11: 3.72 | G11: 0.317 | H11: 0.386
A12: 40 CFR 98, subp. C, Table C-1 and C-2
A13: CO2 | B13: =B48 -> 163.0540221 | C13: =B48 -> 163.0540221 | D13: =B47 -> 116.9773717 | E13: =B49 -> 154.8087268 | F13: =B47 -> 116.9773717 | G13: =B47 -> 116.9773717 | H13: =G13 -> 116.9773717
A14: CH4 | B14: =C48 -> 0.006613873261 | C14: =C48 -> 0.006613873261 | D14: =C47 -> 0.00220462442 | E14: =C49 -> 0.006613873261 | F14: =C47 -> 0.00220462442 | G14: =C47 -> 0.00220462442 | H14: =G14 -> 0.00220462442
A15: N2O | B15: =D48 -> 0.001322774652 | C15: =D48 -> 0.001322774652 | D15: =D47 -> 0.000220462442 | E15: =D49 -> 0.001322774652 | F15: =D47 -> 0.000220462442 | G15: =D47 -> 0.000220462442 | H15: 0.000220462442
A16: source (same as criteria) | E16: HAPs from Diesel<600HP
A17: 1,1,2,2-tetrachloroethane | F17: 2.53e-05 | G17: 4e-05 | H17: 6.63e-05
A18: 1,1,2-trichloroethane | F18: 1.53e-05 | G18: 3.18e-05 | H18: 5.27e-05
A19: 1,3-butadiene | B19: 3.91e-05 | D19: 4.3e-07 | E19: 3.91e-05 | F19: 0.000663 | G19: 0.000267 | H19: 0.00082
A20: 1,3-dichloropropene | F20: 1.27e-05 | G20: 2.64e-05 | H20: 4.38e-05
A21: Acetaldehyde | B21: 0.000767 | C21: 2.52e-05 | D21: 4e-05 | E21: =B21 -> 0.000767 | F21: 0.00279 | G21: 0.00836 | H21: 0.00776
A22: Acrolein | B22: 9.25e-05 | C22: 7.88e-06 | D22: 6.4e-06 | E22: =B22 -> 9.25e-05 | F22: 0.00263 | G22: 0.00514 | H22: 0.00778
A23: Benzene | B23: 0.000933 | C23: 0.000776 | D23: 1.2e-05 | E23: =B23 -> 0.000933 | F23: 0.00158 | G23: 0.00044 | H23: 0.00194
A24: Biphenyl | G24: 0.000212 | H24: 3.95e-06
A25: Carbon tetrachloride | F25: 1.77e-05 | G25: 3.67e-05 | H25: 6.07e-05
A26: Chlorobenzene | F26: 1.29e-05 | G26: 3.04e-05 | H26: 4.44e-05
A27: Chloroform | F27: 1.37e-05 | G27: 2.85e-05 | H27: 4.71e-05
A28: Ethylbenzene | D28: 3.2e-05 | F28: 2.48e-05 | G28: 3.97e-05 | H28: 0.000108
A29: Ethylene dibromide | F29: 2.13e-05 | G29: 4.43e-05 | H29: 7.34e-05
A30: Formaldehyde | B30: 0.00118 | C30: 7.89e-05 | D30: 0.00071 | E30: =B30 -> 0.00118 | F30: 0.0205 | G30: 0.0528 | H30: 0.0552
A31: Hexane | G31: 0.00111 | H31: 0.000445
A32: Methanol | F32: 0.00306 | G32: 0.0025 | H32: 0.00248
A33: Methylene chloride | F33: 4.12e-05 | G33: 2e-05 | H33: 0.000147
A34: Naphthalene | B34: 8.48e-05 | C34: 0.00013 | D34: 1.3e-06 | E34: =B34 -> 8.48e-05 | F34: 9.71e-05 | G34: 7.44e-05 | H34: 9.63e-05
A35: PAH | B35: 0.000168 | C35: 0.000212 | D35: 2.2e-06 | E35: 0.000168 | F35: 0.000141 | G35: 2.69e-05 | H35: 0.000134
A36: Phenol | G36: 2.4e-05 | H36: 4.21e-05
A37: Styrene | F37: 1.19e-05 | G37: 2.36e-05 | H37: 5.48e-05
A38: Tetrachloroethane | G38: 2.48e-06
A39: Toluene | B39: 0.000409 | C39: 0.000281 | D39: 0.00013 | E39: =B39 -> 0.000409 | F39: 0.000558 | G39: 0.000408 | H39: 0.000963
A40: Vinyl chloride | F40: 7.18e-06 | G40: 1.49e-05 | H40: 2.47e-05
A41: Xylene | B41: 0.000285 | C41: 0.000193 | D41: 6.4e-05 | E41: =B41 -> 0.000285 | F41: 0.000195 | G41: 0.000184 | H41: 0.000268
A42: 1 | B42: SOx emission factor given is multiplied by the sulfur content in the fuel (in percent) in the Engine (n) tabs.
A43: 2 | B43: All particulate is assumed to be less than or equal to 1 micrometer in size.
A46: Fuel | B46: CO2 Emission Factor3 (lbs/million BTU) | C46: CH4 Emission Factor3 (lbs/million BTU) | D46: N2O Emission Factor3 (lbs/million BTU) | E46: Source for Emission Factors | F46: Brake-specific fuel consumption (btu/hp*hr)4 | G46: Heat value (Btu/scf) | H46: Heat Value 5 (Btu/gal)
A47: NATURAL GAS | B47: =53.06/0.453592 -> 116.9773717 | C47: =0.001/0.453592 -> 0.00220462442 | D47: =0.0001/0.453592 -> 0.000220462442 | E47: 40 CFR 98, subp. C, Table C-1 | G47: 1020
A48: DISTILLATE OIL 2 | B48: =73.96/0.453592 -> 163.0540221 | C48: =0.003/0.453592 -> 0.006613873261 | D48: =0.0006/0.453592 -> 0.001322774652 | E48: 40 CFR 98, subp. C, Table C-1 | F48: 7000 | H48: =0.138*1000000 -> 138000
A49: GASOLINE | B49: =70.22/0.453592 -> 154.8087268 | C49: =C48 -> 0.006613873261 | D49: =D48 -> 0.001322774652 | E49: 40 CFR 98, subp. C, Table C-1 | F49: 7000 | H49: 125000
A50: 3 | B50: (1 lb = 0.453592 kg)
A51: 4 | B51: An average brake-specific fuel consumption of 7,000 Btu/hp-hr was assumed to convert from lb/MMBtu to lb/hp-hr (see AP42 Chpt 3.3).
B52: 7000 btu/hp*hr x GHG EF (lb/E6BTU)= lb GHG/hp*hr
A53: 5 | B53: Source: 40 CFR 98, Subp. C, Table C-1 and C-2

Sheet Data validation (hidden)
A1: =Instructions!G2 -> p-sbap5-30 • 4/22/19
A2: Data validation
A4: General data | B4: Engines
A5: Selection | B5: Engine and fuel type | C5: Choose one to calculate actual emissions
A6: Choose Y/N | B6: Choose one | C6: Number of hours operated per 12 months
A7: Yes | B7: Reciprocating - diesel | C7: Quantity of fuel actually burned per 12 months
A8: No | B8: Reciprocating - gasoline
B9: Turbine - natural gas
A10: Equation/reference | B10: Recip - nat gas 4-stroke rich burn | C10: Actual emissions entry
A11: NSPS applies | B11: Recip - nat gas 4-stroke lean burn | C11: hours per year (hr/yr)
A12: =SUM(A13:A14) -> 0 | B12: Recip - nat gas 2-stroke lean burn | C12: million Btu per year (MMBtu/yr)
A13: =COUNTIF('Federal standards'!N16,"Yes") -> 0 | C13: gallons per year (gal/yr)
A14: =COUNTIF('Federal standards'!N48,"Yes") -> 0 | B14: Engine use
B15: Choose one
A16: NSPS no selection | B16: Routine
A17: =SUM(A18:A19) -> 2 | B17: Emergency
A18: =IF('Federal standards'!N16="Choose Y/N",1,0) -> 1
A19: =IF('Federal standards'!N48="Choose Y/N",1,0) -> 1 | B19: Input Value
B20: Choose one
A21: Potential exceed | B21: Horsepower(HP) or Brake Power (HP-hr)
A22: =IF(OR('Potential emissions'!G8>=100,OR('Potential emissions'!G9>=25,OR('Potential emissions'!G10>=100,OR('Potential emissions'!G11>=50,OR('Potential emissions'!G12>=100,OR('Potential emissions'!G13>=100,OR('Potential emissions'!G14>=100,OR('Potential emissions'!G15>=0.5,OR('Potential emissions'!G20>=100000,OR('Potential emissions'!G47>=10,'Potential emissions'!G48>=25)))))))))),"yes","no") -> no | B22: Standard cubic feet/hr (scf/hr)
A24: Actual exceed | B24: Fuel Conversion
A25: =IF(OR('Actual emissions'!G8>=50,OR('Actual emissions'!G9>=50,OR('Actual emissions'!G10>=50,OR('Actual emissions'!G11>=50,OR('Actual emissions'!G12>=50,OR('Actual emissions'!G13>=50,OR('Actual emissions'!G14>=50,OR('Actual emissions'!G15>=0.5,OR('Actual emissions'!G20>=50000,OR('Actual emissions'!G47>=5,'Actual emissions'!G48>=12.5)))))))))),"yes","no") -> no | B25: Brake specific fuel consumption
B26: Heat value of fuel
